Workbook

Sheet Photo Sheet
L2: Create Date: | Q2: AUG 22/2017 | X2: Main Brand Label :
L3: Vendor Name:
L4: Vndr.Item No.: | AA4: GC Item No.:
L5: Size Range: | Q5: 0-6 MONTHS | AA5: Season: | AD5: Spring Summer 2018
L6: Description: | Q6: BABY- SHORT SLEEVE ONESIE PRINT WITH CHEST DIAGONAL OPENING
B7: BABY APPAREL SPEC SHEET -- ONSIE | T7: REFERENCE # SS18 -1076
B8: PHOTOS OF ORIGINAL SAMPLE
AL54: S-M-L
AL55: SM-LXL
AL56: S-M-L-XL
AL57: 1X-2X-3X
AL58: OS

Sheet Technical Sketch (hidden)
L2: Create Date: | Q2: ='Photo Sheet'!Q2:W2 -> AUG 22/2017
L3: Vendor Name: | Q3: ='Photo Sheet'!Q3:AI3 -> 0
L4: Vndr.Item No.: | Q4: ='Photo Sheet'!Q4:W4 -> 0 | AA4: GC Item No.: | AE4: ='Photo Sheet'!AE4:AI4 -> 0
L5: Size Range: | Q5: ='Photo Sheet'!Q5:W5 -> 0-6 MONTHS | AA5: Season: | AD5: Fall Winter 2016
L6: Description: | Q6: ='Photo Sheet'!Q6:AI6 -> BABY- SHORT SLEEVE ONESIE PRINT WITH CHEST DIAGONAL OPENING
B7: FIT FOR DEVELOPMENT SAMPLE / PHOTO / SALESMANS SAMPLES ONLY | AN7: S
B8: TECHNICAL SKETCH | T8: Date: | AN8: M
AN9: L
AN10: XL
AN11: SM
AN12: LXL
AN13: OS
AN14: 1X
AN15: 2X

Sheet Fabric, Trim, Sheet
L2: Create Date: | Q2: ='Photo Sheet'!Q2:W2 -> AUG 22/2017
L3: Vendor Name: | Q3: ='Photo Sheet'!Q3:AI3 -> 0
L4: Vndr.Item No.: | Q4: ='Photo Sheet'!Q4:W4 -> 0 | AA4: GC Item No.: | AE4: ='Photo Sheet'!AE4:AI4 -> 0
L5: Size Range: | Q5: ='Photo Sheet'!Q5:W5 -> 0-6 MONTHS | AA5: Season: | AD5: ='Photo Sheet'!AD5:AI5 -> Spring Summer 2018
L6: Description: | Q6: ='Photo Sheet'!Q6:AI6 -> BABY- SHORT SLEEVE ONESIE PRINT WITH CHEST DIAGONAL OPENING
B8: FABRIC DETAILS: | H8: FABRIC 1 | O8: COLOUR 1 | V8: FABRIC 2 | AC8: COLOUR 2
B9: Product Component: | H9: KNIT | V9: KNIT | AC9: CONTRAST
B10: Fibre Content: | H10: 100% COTTON | V10: 100% COTTON
B11: Description: | H11: PRINT INTERLOCK | V11: SOLID INTERLOCK
B12: Weight: | H12: 188 GSM | V12: 188 GSM
B13: Construction:
B14: Yarn Count:
B15: Garment Finish:
B16: (wash, garment dye etc)
B17: Special Requests:
B20: TRIM DETAILS | H20: DESCRIPTION | Y20: SIZE | AC20: COLOUR
B21: Binding | H21: NECK, LEG OPENINGS | AC21: WHITE | AN21: Binding
B22: Buttons | AN22: Buttons
B23: Elastic | AN23: Elastic
B24: Fasteners | AN24: Fasteners
B25: Mobilon | AN25: Mobilon
B26: Piping | AN26: Piping
B27: Zipper | AN27: Zipper
B28: Interfacing
B29: Sliders
B30: Snaps | H30: SOLID TOP METAL SNAPS | Y30: 10MM | AC30: DTM METAL TOPS TO TRIM
B31: Snaps | H31: 3- METAL RING SNAPS | Y31: 10MM | AC31: DTM METAL TOPS TO TRIM
B32: Tape | H32: COTTON TWILL ON FRONT CROTCH FACING | Y32: 7/8" WIDE | AC32: WHITE
B33: GARMENT CONSTRUCTION DETAILS
B34: LOCATION | H34: DESCRIPTION | AC34: ISO STANDARD
AN35: 2 Needle Bottom Cover Stitch
AN36: 2 Needle, 4 Thread Cover Stitch
AN37: 3 Needle Bottom Cover Stitch
AN38: 3 Thread OverEdge
AN39: 5 Needle, 5 Thread Cover Stitch
AN40: 5 Thread Safety Stitch
AN41: Lock Stitch
AN42: ZigZag Lock Stitch

Sheet Apparel Spec Sheet
L2: Create Date: | Q2: ='Photo Sheet'!Q2:W2 -> AUG 22/2017
L3: Vendor Name: | Q3: ='Photo Sheet'!Q3:AI3 -> 0
L4: Vndr.Item No.: | Q4: ='Photo Sheet'!Q4:W4 -> 0 | AA4: GC Item No.: | AE4: ='Photo Sheet'!AE4:AI4 -> 0
L5: Size Range: | Q5: ='Photo Sheet'!Q5:W5 -> 0-6 MONTHS | AA5: Season: | AD5: Spring Summer 2018
L6: Description: | Q6: ='Photo Sheet'!Q6:AI6 -> BABY- SHORT SLEEVE ONESIE PRINT WITH CHEST DIAGONAL OPENING
B7: FIT FOR DEVELOPMENT SAMPLE / PHOTO / SALESMANS SAMPLES ONLY- SIZE S or SM
B8: BABY APPAREL SPEC SHEET -- ONSIE | T8: Date: | X8: AUG 22/2017 | AN8: S
B9: (Measurements on flat / inches) | P9: Original Sample | X9: Comments | AG9: Tolerance + / - (on flat) | AN9: M
P10: 0-6M | T10: 0-6M | AN10: L
B11: BACK TORSO LENGTH( HSP TO BACK CROTH -UNDOMED) | P11: 18 | T11: 18 | AG11: 0.375 | AN11: XL
B12: CENTER BACK LENGTH( C.B. NECK TO HEM | AG12: 0.25 | AN12: SM
B13: FRONT TORSO LENGTH ( HSP TO FRONT CROTCH-UNDOMED) | P13: 15.5 | T13: 15.5 | AG13: 0.375 | AN13: LXL
B14: CHEST( 1/2" BELOW ARMHOLE | P14: 8.5 | T14: 8.5 | AG14: 0.25 | AN14: OS
B15: WAIST | P15: 8 | T15: 8 | AG15: 0.25 | AN15: 1X
B16: HIP ( TOP OF LEG OPENING) | P16: 8.75 | T16: 8.75 | AG16: 0.25 | AN16: 2X
B17: HEM STRAIGHT | AG17: 0.25 | AN17: 3X
B18: ACROSS SHOULDERS | P18: 7 | T18: 7 | AG18: 0.25
B19: SHOULDER SEAM LENGTH | AG19: 0.25
B20: ACROSS FRONT ( MID ARMHOLE) | P20: 6 | T20: 6 | AG20: 0.25
B21: ACROSS BACK ( MID ARMHOLE) | P21: 6.5 | T21: 6.5 | AG21: 0.25
B22: RAGLAN ACROSS FRONT ( MID ARMHOLE) | AG22: 0.25
B23: RAGLAN ACROSS BACK ( MIS ARMHOLE) | AG23: 0.25
B24: OVERARM - SLEEVE CAP TO HEM - SHORT SLEEVE | P24: 3 | T24: 3 | AG24: 0.125
B25: OVERARM - SLEEVE CAP TO HEM - 3/4 SLEEVE | AG25: 0.25
B26: OVERARM - SLEEVE CAP TO HEM - LONG SLEEVE | AG26: 0.25
B27: OVERARM ( NECK TO SLEEVE HEM) | AG27: 0.25
B28: 1/2 ARMHOLE STRAIGHT | P28: 4.25 | T28: 4.25 | AG28: 0.125
B29: FRONT RAGLAN LENGTH ON SEAM | AG29: 0.25
B30: BACK RAGLAN LENGTH ON SEAM | AG30: 0.25
B31: BICEP ( AT ARMHOLE SEAM) | P31: 3.5 | T31: 3.5 | AG31: 0.125
B32: ELBOW | AG32: 0.125
B33: SHORT SLEEVE OPENING | P33: 3.25 | T33: 3.25 | AG33: 0.125
B34: 3/4 SLEEVE OPENING | AG34: 0.125
B35: LONG SLEEVE OPENING | AG35: 0.125
B36: SLEEEVE CAP HEIGHT | AG36: 0.125
B37: NECK WIDTH ( ON BACK BETWEEN TRIM) | P37: 4.5 | T37: 4.5 | AG37: 0.125
B38: FRONT NECK DROP | P38: 2 | T38: 2 | AG38: 0.125
B39: BACK NECK DROP | P39: 3/4 | T39: 3/4 | AG39: 0.125
B40: 1/2 NECK CIRECUMFERENCE - RELAXED | AG40: 0.125
B41: 1/2 NECK CIRECUMFERENCE -EXTENDED | P41: 8.5 | T41: 8.5 | AG41: 0.25
B42: COLLAR DEPTH AT C.B NECK | AG42: 0
B43: NECK TRIM DEPTH | P43: 1/2 | T43: 1/2 | AG43: 0
B44: CUFF DEPTH | AG44: 0
B45: SLEEVE HEM DEPTH | P45: 0.5 | T45: 0.5 | AG45: 0
B46: BOTTOM HEM DEPTH | AG46: 0
B47: THIGH ( 1/2" BELOW CROTCH) | AG47: 0.125
B48: KNEE WIDTH | AG48: 0.125
B49: LEG OPENING WIDTH | P49: 4 | T49: 4 | AG49: 0.125
B50: FRONT CROTCH WIDTH | P50: 3.25 | T50: 3.25 | AG50: 0.125
B51: SAM E BODY FIT AS SS18-1075- EXCEPT DIFFERENT FRONT STYLING
B52: Sample Approved? | P52: PLEASE MAKE SAMPLE IN SAME GSM WIGHT AND TO SPECS
B53: If sample is NOT approved, then submit 1st Fit Sample. If sample is APPROVED, then submit Pre-Production Samples.

Sheet Original Sample Photos
L2: Create Date: | Q2: ='Photo Sheet'!Q2:W2 -> AUG 22/2017
L3: Vendor Name: | Q3: ='Photo Sheet'!Q3:AI3 -> 0
L4: Vndr.Item No.: | Q4: ='Photo Sheet'!Q4:W4 -> 0 | AA4: GC Item No.: | AE4: ='Photo Sheet'!AE4:AI4 -> 0
L5: Size Range: | Q5: ='Photo Sheet'!Q5:W5 -> 0-6 MONTHS | AA5: Season:
L6: Description: | Q6: ='Photo Sheet'!Q6:AI6 -> BABY- SHORT SLEEVE ONESIE PRINT WITH CHEST DIAGONAL OPENING
B7: FIT FOR DEVELOPMENT SAMPLE / PHOTO / SALESMANS SAMPLES ONLY
B8: BABY APPAREL PHOTO COMMENTS -- ONSIE | T8: Date: | X8: AUG 22/2017 | AN8: S
AN9: M
AN10: L
AN11: XL
AN12: SM
AN13: LXL
AN14: XXL
AN15: XXXL
AN16: OS
AN17: 1X
AN18: 2X
AN19: 3X

Sheet Original Sample Photos (2)
L2: Create Date: | Q2: ='Photo Sheet'!Q2:W2 -> AUG 22/2017
L3: Vendor Name: | Q3: ='Photo Sheet'!Q3:AI3 -> 0
L4: Vndr.Item No.: | Q4: ='Photo Sheet'!Q4:W4 -> 0 | AA4: GC Item No.: | AE4: ='Photo Sheet'!AE4:AI4 -> 0
L5: Size Range: | Q5: ='Photo Sheet'!Q5:W5 -> 0-6 MONTHS | AA5: Season:
L6: Description: | Q6: ='Photo Sheet'!Q6:AI6 -> BABY- SHORT SLEEVE ONESIE PRINT WITH CHEST DIAGONAL OPENING
B7: FIT FOR DEVELOPMENT SAMPLE / PHOTO / SALESMANS SAMPLES ONLY
B8: BABY APPAREL PHOTO COMMENTS -- ONSIE | T8: Date: | X8: AUG 22/2017 | AN8: S
AN9: M
AN10: L
AN11: XL
AN12: SM
AN13: LXL
AN14: XXL
AN15: XXXL
AN16: OS
AN17: 1X
AN18: 2X
AN19: 3X

Sheet Fabrics (hidden)
L2: Create Date: | Q2: ='Photo Sheet'!Q2:W2 -> AUG 22/2017
L3: Vendor Name: | Q3: ='Photo Sheet'!Q3:AI3 -> 0
L4: Vndr.Item No.: | Q4: ='Photo Sheet'!Q4:W4 -> 0 | AA4: GC Item No.: | AE4: ='Photo Sheet'!AE4:AI4 -> 0
L5: Size Range: | Q5: ='Photo Sheet'!Q5:W5 -> 0-6 MONTHS | AA5: Season: | AD5: Fall Winter 2016
L6: Description: | Q6: ='Photo Sheet'!Q6:AI6 -> BABY- SHORT SLEEVE ONESIE PRINT WITH CHEST DIAGONAL OPENING
B8: FABRICS / strike -offs / lab dips | T8: Date: | AN8: L
AN9: LXL
AN10: M
AN11: S
AN12: SM
AN13: XL
AN14: XXL
AN15: XXXL

Sheet 1st Fit Sample (hidden)
L2: Create Date: | Q2: ='Photo Sheet'!Q2:W2 -> AUG 22/2017
L3: Vendor Name: | Q3: ='Photo Sheet'!Q3:AI3 -> 0
L4: Vndr.Item No.: | Q4: ='Photo Sheet'!Q4:W4 -> 0 | AA4: GC Item No.: | AE4: ='Photo Sheet'!AE4:AI4 -> 0
L5: Size Range: | Q5: ='Photo Sheet'!Q5:W5 -> 0-6 MONTHS | AA5: Season: | AD5: Fall Winter 2016
L6: Description: | Q6: ='Photo Sheet'!Q6:AI6 -> BABY- SHORT SLEEVE ONESIE PRINT WITH CHEST DIAGONAL OPENING
B8: BABY APPAREL SPEC SHEET -- ONSIE | T8: Date: | AN8: S
B9: (Measurements on flat / inches) | P9: 1st Fit Sample | T9: Required Spec | X9: Comments | AG9: Tolerance + / - (on flat) | AN9: M
P10: S | T10: S | AN10: L
B11: ='Apparel Spec Sheet'!B11:O11 -> BACK TORSO LENGTH( HSP TO BACK CROTH -UNDOMED) | AG11: 0.375 | AN11: XL
B12: ='Apparel Spec Sheet'!B12:O12 -> CENTER BACK LENGTH( C.B. NECK TO HEM | AG12: 0.375 | AN12: SM
B13: ='Apparel Spec Sheet'!B14:O14 -> CHEST( 1/2" BELOW ARMHOLE | AG13: 0.375 | AN13: LXL
B14: FRONT LENGTH (FROM CENTRE FRONT NECK TO HEM) | AG14: 0.375 | AN14: OS
B15: ='Apparel Spec Sheet'!B15:O15 -> WAIST | AG15: 0.375 | AN15: 1X
B16: ='Apparel Spec Sheet'!B16:O16 -> HIP ( TOP OF LEG OPENING) | AG16: 0.375 | AN16: 2X
B17: ='Apparel Spec Sheet'!B17:O17 -> HEM STRAIGHT | AG17: 0.375 | AN17: 3X
B18: ='Apparel Spec Sheet'!B18:O18 -> ACROSS SHOULDERS | AG18: 0.375
B19: ='Apparel Spec Sheet'!B19:O19 -> SHOULDER SEAM LENGTH | AG19: 0.375
B20: HEM CURVE (FOLLOW) | AG20: 0.375
B21: ='Apparel Spec Sheet'!B21:O21 -> ACROSS BACK ( MID ARMHOLE) | AG21: 0.375
B22: ='Apparel Spec Sheet'!B22:O22 -> RAGLAN ACROSS FRONT ( MID ARMHOLE) | AG22: 0.375
B23: ='Apparel Spec Sheet'!B23:O23 -> RAGLAN ACROSS BACK ( MIS ARMHOLE) | AG23: 0.375
B24: ='Apparel Spec Sheet'!B24:O24 -> OVERARM - SLEEVE CAP TO HEM - SHORT SLEEVE | AG24: 0.25
B25: ='Apparel Spec Sheet'!B25:O25 -> OVERARM - SLEEVE CAP TO HEM - 3/4 SLEEVE | AG25: 0.25
B26: ='Apparel Spec Sheet'!B26:O26 -> OVERARM - SLEEVE CAP TO HEM - LONG SLEEVE | AG26: 0.375
B27: ='Apparel Spec Sheet'!B27:O27 -> OVERARM ( NECK TO SLEEVE HEM) | AG27: 0.25
B28: ='Apparel Spec Sheet'!B28:O28 -> 1/2 ARMHOLE STRAIGHT | AG28: 0.25
B29: ='Apparel Spec Sheet'!B29:O29 -> FRONT RAGLAN LENGTH ON SEAM | AG29: 0.25
B30: ='Apparel Spec Sheet'!B30:O30 -> BACK RAGLAN LENGTH ON SEAM | AG30: 0.25
B31: ='Apparel Spec Sheet'!B31:O31 -> BICEP ( AT ARMHOLE SEAM) | AG31: 0.25
B32: ='Apparel Spec Sheet'!B32:O32 -> ELBOW | AG32: 0.25
B33: ='Apparel Spec Sheet'!B33:O33 -> SHORT SLEEVE OPENING | AG33: 1/4
B34: ='Apparel Spec Sheet'!B34:O34 -> 3/4 SLEEVE OPENING | AG34: 0
B35: ='Apparel Spec Sheet'!B35:O35 -> LONG SLEEVE OPENING | AG35: 0.25
B36: ='Apparel Spec Sheet'!B36:O36 -> SLEEEVE CAP HEIGHT | AG36: 0.25
B37: ='Apparel Spec Sheet'!B37:O37 -> NECK WIDTH ( ON BACK BETWEEN TRIM) | AG37: 0.25
B38: ='Apparel Spec Sheet'!B38:O38 -> FRONT NECK DROP | AG38: 0.25
B39: ='Apparel Spec Sheet'!B39:O39 -> BACK NECK DROP | AG39: 0
B40: ='Apparel Spec Sheet'!B40:O40 -> 1/2 NECK CIRECUMFERENCE - RELAXED | AG40: 0
B41: ='Apparel Spec Sheet'!B41:O41 -> 1/2 NECK CIRECUMFERENCE -EXTENDED | AG41: 0.25
B42: ='Apparel Spec Sheet'!B42:O42 -> COLLAR DEPTH AT C.B NECK | AG42: 0
B43: ='Apparel Spec Sheet'!B43:O43 -> NECK TRIM DEPTH | AG43: 0
B44: ='Apparel Spec Sheet'!B44:O44 -> CUFF DEPTH | AG44: 0
B45: ='Apparel Spec Sheet'!B45:O45 -> SLEEVE HEM DEPTH | AG45: 0
B46: ='Apparel Spec Sheet'!B46:O46 -> BOTTOM HEM DEPTH | AG46: 0.375
B47: ='Apparel Spec Sheet'!B47:O47 -> THIGH ( 1/2" BELOW CROTCH)
B48: ='Apparel Spec Sheet'!B48:O48 -> KNEE WIDTH | AG48: 0.25
B49: ='Apparel Spec Sheet'!B49:O49 -> LEG OPENING WIDTH | AG49: 0.25
B50: ='Apparel Spec Sheet'!B50:O50 -> FRONT CROTCH WIDTH | AG50: 0.25
B51: ='Apparel Spec Sheet'!B51:O51 -> SAM E BODY FIT AS SS18-1075- EXCEPT DIFFERENT FRONT STYLING | AG51: 0.375
B52: Sample Approved?
B53: If sample is NOT approved, then submit 2nd Fit Sample. If sample is APPROVED, then submit Pre-Production Samples.

Sheet 1st Fit Photo Comments (hidden)
L2: Create Date: | Q2: ='Photo Sheet'!Q2:W2 -> AUG 22/2017
L3: Vendor Name: | Q3: ='Photo Sheet'!Q3:AI3 -> 0
L4: Vndr.Item No.: | Q4: ='Photo Sheet'!Q4:W4 -> 0 | AA4: GC Item No.: | AE4: ='Photo Sheet'!AE4:AI4 -> 0
L5: Size Range: | Q5: ='Photo Sheet'!Q5:W5 -> 0-6 MONTHS | AA5: Season: | AD5: Fall Winter 2016
L6: Description: | Q6: ='Photo Sheet'!Q6:AI6 -> BABY- SHORT SLEEVE ONESIE PRINT WITH CHEST DIAGONAL OPENING
B8: BABY APPAREL SPEC SHEET -- ONSIE | T8: Date: | AN8: L
AN9: LXL
AN10: M
AN11: S
AN12: SM
AN13: XL
AN14: XXL
AN15: XXXL

Sheet 2nd Fit Sample (hidden)
L2: Create Date: | Q2: ='Photo Sheet'!Q2:W2 -> AUG 22/2017
L3: Vendor Name: | Q3: ='Photo Sheet'!Q3:AI3 -> 0
L4: Vndr.Item No.: | Q4: ='Photo Sheet'!Q4:W4 -> 0 | AA4: GC Item No.: | AE4: ='Photo Sheet'!AE4:AI4 -> 0
L5: Size Range: | Q5: ='Photo Sheet'!Q5:W5 -> 0-6 MONTHS | AA5: Season: | AD5: Fall Winter 2016
L6: Description: | Q6: ='Photo Sheet'!Q6:AI6 -> BABY- SHORT SLEEVE ONESIE PRINT WITH CHEST DIAGONAL OPENING
B8: BABY APPAREL SPEC SHEET -- ONSIE | T8: Date: | AN8: S
B9: (Measurements on flat / inches) | P9: 2nd Fit Sample | T9: Required Spec | X9: Comments | AG9: Tolerance + / - (on flat) | AN9: M
P10: S | T10: S | AN10: L
B11: ='Apparel Spec Sheet'!B11:O11 -> BACK TORSO LENGTH( HSP TO BACK CROTH -UNDOMED) | AG11: 0.375 | AN11: XL
B12: ='Apparel Spec Sheet'!B12:O12 -> CENTER BACK LENGTH( C.B. NECK TO HEM | AG12: 0.375 | AN12: SM
B13: ='Apparel Spec Sheet'!B14:O14 -> CHEST( 1/2" BELOW ARMHOLE | AG13: 0.375 | AN13: LXL
B14: FRONT LENGTH (FROM CENTRE FRONT NECK TO HEM) | AG14: 0.375 | AN14: OS
B15: ='Apparel Spec Sheet'!B15:O15 -> WAIST | AG15: 0.375 | AN15: 1X
B16: ='Apparel Spec Sheet'!B16:O16 -> HIP ( TOP OF LEG OPENING) | AG16: 0.375 | AN16: 2X
B17: ='Apparel Spec Sheet'!B17:O17 -> HEM STRAIGHT | AG17: 0.375 | AN17: 3X
B18: ='Apparel Spec Sheet'!B18:O18 -> ACROSS SHOULDERS | AG18: 0.375
B19: ='Apparel Spec Sheet'!B19:O19 -> SHOULDER SEAM LENGTH | AG19: 0.375
B20: HEM CURVE (FOLLOW) | AG20: 0.375
B21: ='Apparel Spec Sheet'!B21:O21 -> ACROSS BACK ( MID ARMHOLE) | AG21: 0.375
B22: ='Apparel Spec Sheet'!B22:O22 -> RAGLAN ACROSS FRONT ( MID ARMHOLE) | AG22: 0.375
B23: ='Apparel Spec Sheet'!B23:O23 -> RAGLAN ACROSS BACK ( MIS ARMHOLE) | AG23: 0.375
B24: ='Apparel Spec Sheet'!B24:O24 -> OVERARM - SLEEVE CAP TO HEM - SHORT SLEEVE | AG24: 0.25
B25: ='Apparel Spec Sheet'!B25:O25 -> OVERARM - SLEEVE CAP TO HEM - 3/4 SLEEVE | AG25: 0.25
B26: ='Apparel Spec Sheet'!B26:O26 -> OVERARM - SLEEVE CAP TO HEM - LONG SLEEVE | AG26: 0.375
B27: ='Apparel Spec Sheet'!B27:O27 -> OVERARM ( NECK TO SLEEVE HEM) | AG27: 0.25
B28: ='Apparel Spec Sheet'!B28:O28 -> 1/2 ARMHOLE STRAIGHT | AG28: 0.25
B29: ='Apparel Spec Sheet'!B29:O29 -> FRONT RAGLAN LENGTH ON SEAM | AG29: 0.25
B30: ='Apparel Spec Sheet'!B30:O30 -> BACK RAGLAN LENGTH ON SEAM | AG30: 0.25
B31: ='Apparel Spec Sheet'!B31:O31 -> BICEP ( AT ARMHOLE SEAM) | AG31: 0.25
B32: ='Apparel Spec Sheet'!B32:O32 -> ELBOW | AG32: 0.25
B33: ='Apparel Spec Sheet'!B33:O33 -> SHORT SLEEVE OPENING | AG33: 1/4
B34: ='Apparel Spec Sheet'!B34:O34 -> 3/4 SLEEVE OPENING | AG34: 0
B35: ='Apparel Spec Sheet'!B35:O35 -> LONG SLEEVE OPENING | AG35: 0.25
B36: ='Apparel Spec Sheet'!B36:O36 -> SLEEEVE CAP HEIGHT | AG36: 0.25
B37: ='Apparel Spec Sheet'!B37:O37 -> NECK WIDTH ( ON BACK BETWEEN TRIM) | AG37: 0.25
B38: ='Apparel Spec Sheet'!B38:O38 -> FRONT NECK DROP | AG38: 0.25
B39: ='Apparel Spec Sheet'!B39:O39 -> BACK NECK DROP | AG39: 0
B40: ='Apparel Spec Sheet'!B40:O40 -> 1/2 NECK CIRECUMFERENCE - RELAXED | AG40: 0
B41: ='Apparel Spec Sheet'!B41:O41 -> 1/2 NECK CIRECUMFERENCE -EXTENDED | AG41: 0.25
B42: ='Apparel Spec Sheet'!B42:O42 -> COLLAR DEPTH AT C.B NECK | AG42: 0
B43: ='Apparel Spec Sheet'!B43:O43 -> NECK TRIM DEPTH | AG43: 0
B44: ='Apparel Spec Sheet'!B44:O44 -> CUFF DEPTH | AG44: 0
B45: ='Apparel Spec Sheet'!B45:O45 -> SLEEVE HEM DEPTH | AG45: 0
B46: ='Apparel Spec Sheet'!B46:O46 -> BOTTOM HEM DEPTH | AG46: 0.375
B47: ='Apparel Spec Sheet'!B47:O47 -> THIGH ( 1/2" BELOW CROTCH)
B48: ='Apparel Spec Sheet'!B48:O48 -> KNEE WIDTH | AG48: 0.25
B49: ='Apparel Spec Sheet'!B49:O49 -> LEG OPENING WIDTH | AG49: 0.25
B50: ='Apparel Spec Sheet'!B50:O50 -> FRONT CROTCH WIDTH | AG50: 0.25
B51: ='Apparel Spec Sheet'!B51:O51 -> SAM E BODY FIT AS SS18-1075- EXCEPT DIFFERENT FRONT STYLING | AG51: 0.375
B52: Sample Approved?
B53: If sample is NOT approved, then submit 3rd Fit Sample. If sample is APPROVED, then submit Pre-Production Samples.

Sheet 2nd Fit Photo Comments (hidden)
L2: Create Date: | Q2: ='Photo Sheet'!Q2:W2 -> AUG 22/2017
L3: Vendor Name: | Q3: ='Photo Sheet'!Q3:AI3 -> 0
L4: Vndr.Item No.: | Q4: ='Photo Sheet'!Q4:W4 -> 0 | AA4: GC Item No.: | AE4: ='Photo Sheet'!AE4:AI4 -> 0
L5: Size Range: | Q5: ='Photo Sheet'!Q5:W5 -> 0-6 MONTHS | AA5: Season: | AD5: Fall Winter 2016
L6: Description: | Q6: ='Photo Sheet'!Q6:AI6 -> BABY- SHORT SLEEVE ONESIE PRINT WITH CHEST DIAGONAL OPENING
B8: BABY APPAREL SPEC SHEET -- ONSIE | T8: Date: | AN8: L
AN9: LXL
AN10: M
AN11: S
AN12: SM
AN13: XL
AN14: XXL
AN15: XXXL

Sheet 3rd Fit Sample (hidden)
L2: Create Date: | Q2: ='Photo Sheet'!Q2:W2 -> AUG 22/2017
L3: Vendor Name: | Q3: ='Photo Sheet'!Q3:AI3 -> 0
L4: Vndr.Item No.: | Q4: ='Photo Sheet'!Q4:W4 -> 0 | AA4: GC Item No.: | AE4: ='Photo Sheet'!AE4:AI4 -> 0
L5: Size Range: | Q5: ='Photo Sheet'!Q5:W5 -> 0-6 MONTHS | AA5: Season: | AD5: Fall Winter 2016
L6: Description: | Q6: ='Photo Sheet'!Q6:AI6 -> BABY- SHORT SLEEVE ONESIE PRINT WITH CHEST DIAGONAL OPENING
B8: BABY APPAREL SPEC SHEET -- ONSIE | T8: Date: | AN8: S
B9: (Measurements on flat / inches) | P9: 3rd Fit Sample | T9: Required Spec | X9: Comments | AG9: Tolerance + / - (on flat) | AN9: M
P10: S | T10: S | AN10: L
B11: ='Apparel Spec Sheet'!B11:O11 -> BACK TORSO LENGTH( HSP TO BACK CROTH -UNDOMED) | AG11: 0.375 | AN11: XL
B12: ='Apparel Spec Sheet'!B12:O12 -> CENTER BACK LENGTH( C.B. NECK TO HEM | AG12: 0.375 | AN12: SM
B13: ='Apparel Spec Sheet'!B14:O14 -> CHEST( 1/2" BELOW ARMHOLE | AG13: 0.375 | AN13: LXL
B14: FRONT LENGTH (FROM CENTRE FRONT NECK TO HEM) | AG14: 0.375 | AN14: OS
B15: ='Apparel Spec Sheet'!B15:O15 -> WAIST | AG15: 0.375 | AN15: 1X
B16: ='Apparel Spec Sheet'!B16:O16 -> HIP ( TOP OF LEG OPENING) | AG16: 0.375 | AN16: 2X
B17: ='Apparel Spec Sheet'!B17:O17 -> HEM STRAIGHT | AG17: 0.375 | AN17: 3X
B18: ='Apparel Spec Sheet'!B18:O18 -> ACROSS SHOULDERS | AG18: 0.375
B19: ='Apparel Spec Sheet'!B19:O19 -> SHOULDER SEAM LENGTH | AG19: 0.375
B20: HEM CURVE (FOLLOW) | AG20: 0.375
B21: ='Apparel Spec Sheet'!B21:O21 -> ACROSS BACK ( MID ARMHOLE) | AG21: 0.375
B22: ='Apparel Spec Sheet'!B22:O22 -> RAGLAN ACROSS FRONT ( MID ARMHOLE) | AG22: 0.375
B23: ='Apparel Spec Sheet'!B23:O23 -> RAGLAN ACROSS BACK ( MIS ARMHOLE) | AG23: 0.375
B24: ='Apparel Spec Sheet'!B24:O24 -> OVERARM - SLEEVE CAP TO HEM - SHORT SLEEVE | AG24: 0.25
B25: ='Apparel Spec Sheet'!B25:O25 -> OVERARM - SLEEVE CAP TO HEM - 3/4 SLEEVE | AG25: 0.25
B26: ='Apparel Spec Sheet'!B26:O26 -> OVERARM - SLEEVE CAP TO HEM - LONG SLEEVE | AG26: 0.375
B27: ='Apparel Spec Sheet'!B27:O27 -> OVERARM ( NECK TO SLEEVE HEM) | AG27: 0.25
B28: ='Apparel Spec Sheet'!B28:O28 -> 1/2 ARMHOLE STRAIGHT | AG28: 0.25
B29: ='Apparel Spec Sheet'!B29:O29 -> FRONT RAGLAN LENGTH ON SEAM | AG29: 0.25
B30: ='Apparel Spec Sheet'!B30:O30 -> BACK RAGLAN LENGTH ON SEAM | AG30: 0.25
B31: ='Apparel Spec Sheet'!B31:O31 -> BICEP ( AT ARMHOLE SEAM) | AG31: 0.25
B32: ='Apparel Spec Sheet'!B32:O32 -> ELBOW | AG32: 0.25
B33: ='Apparel Spec Sheet'!B33:O33 -> SHORT SLEEVE OPENING | AG33: 1/4
B34: ='Apparel Spec Sheet'!B34:O34 -> 3/4 SLEEVE OPENING | AG34: 0
B35: ='Apparel Spec Sheet'!B35:O35 -> LONG SLEEVE OPENING | AG35: 0.25
B36: ='Apparel Spec Sheet'!B36:O36 -> SLEEEVE CAP HEIGHT | AG36: 0.25
B37: ='Apparel Spec Sheet'!B37:O37 -> NECK WIDTH ( ON BACK BETWEEN TRIM) | AG37: 0.25
B38: ='Apparel Spec Sheet'!B38:O38 -> FRONT NECK DROP | AG38: 0.25
B39: ='Apparel Spec Sheet'!B39:O39 -> BACK NECK DROP | AG39: 0
B40: ='Apparel Spec Sheet'!B40:O40 -> 1/2 NECK CIRECUMFERENCE - RELAXED | AG40: 0
B41: ='Apparel Spec Sheet'!B41:O41 -> 1/2 NECK CIRECUMFERENCE -EXTENDED | AG41: 0.25
B42: ='Apparel Spec Sheet'!B42:O42 -> COLLAR DEPTH AT C.B NECK | AG42: 0
B43: ='Apparel Spec Sheet'!B43:O43 -> NECK TRIM DEPTH | AG43: 0
B44: ='Apparel Spec Sheet'!B44:O44 -> CUFF DEPTH | AG44: 0
B45: ='Apparel Spec Sheet'!B45:O45 -> SLEEVE HEM DEPTH | AG45: 0
B46: ='Apparel Spec Sheet'!B46:O46 -> BOTTOM HEM DEPTH | AG46: 0.375
B47: ='Apparel Spec Sheet'!B47:O47 -> THIGH ( 1/2" BELOW CROTCH)
B48: ='Apparel Spec Sheet'!B48:O48 -> KNEE WIDTH | AG48: 0.25
B49: ='Apparel Spec Sheet'!B49:O49 -> LEG OPENING WIDTH | AG49: 0.25
B50: ='Apparel Spec Sheet'!B50:O50 -> FRONT CROTCH WIDTH | AG50: 0.25
B51: ='Apparel Spec Sheet'!B51:O51 -> SAM E BODY FIT AS SS18-1075- EXCEPT DIFFERENT FRONT STYLING | AG51: 0.375
B52: Sample Approved?
B53: If sample is NOT approved, then submit 4th Fit Sample. If sample is APPROVED, then submit Pre-Production Samples.

Sheet 3rd Fit Photo Comments (hidden)
L2: Create Date: | Q2: ='Photo Sheet'!Q2:W2 -> AUG 22/2017
L3: Vendor Name: | Q3: ='Photo Sheet'!Q3:AI3 -> 0
L4: Vndr.Item No.: | Q4: ='Photo Sheet'!Q4:W4 -> 0 | AA4: GC Item No.: | AE4: ='Photo Sheet'!AE4:AI4 -> 0
L5: Size Range: | Q5: ='Photo Sheet'!Q5:W5 -> 0-6 MONTHS | AA5: Season: | AD5: Fall Winter 2016
L6: Description: | Q6: ='Photo Sheet'!Q6:AI6 -> BABY- SHORT SLEEVE ONESIE PRINT WITH CHEST DIAGONAL OPENING
B8: BABY APPAREL SPEC SHEET -- ONSIE | T8: Date: | AN8: L
AN9: LXL
AN10: M
AN11: S
AN12: SM
AN13: XL
AN14: XXL
AN15: XXXL

Sheet Grade S-M-L-XL (hidden)
L2: Create Date: | Q2: ='Photo Sheet'!Q2:W2 -> AUG 22/2017
L3: Vendor Name: | Q3: ='Photo Sheet'!Q3:AI3 -> 0
L4: Vndr.Item No.: | Q4: ='Photo Sheet'!Q4:W4 -> 0 | AA4: GC Item No.: | AE4: ='Photo Sheet'!AE4:AI4 -> 0
L5: Size Range: | Q5: ='Photo Sheet'!Q5:W5 -> 0-6 MONTHS | AA5: Season: | AD5: Fall Winter 2016
L6: Description: | Q6: ='Photo Sheet'!Q6:AI6 -> BABY- SHORT SLEEVE ONESIE PRINT WITH CHEST DIAGONAL OPENING
B8: GRADE SHEET -- TOP / SWEATER | T8: Date: | AN8: L
B9: (Measurements on flat / inches) | P9: S | T9: M | X9: L | AB9: XL | AG9: Tolerance + / - (on flat) | AN9: LXL
AN10: M
B11: BACK LENGTH FROM (HIGH SHOULDER POINT) | P11: =T11-0.25 -> -0.25 | T11: 0 | X11: =T11+0.375 -> 0.375 | AB11: =T11+0.75 -> 0.75 | AG11: 0.375 | AN11: S
B12: CENTER BACK LENGTH ( FROM NECK TO HEM ) | T12: 0 | AG12: 0.375 | AN12: SM
B13: FRONT LENGTH FROM (HIGH SHOULDER POINT) | P13: =T13-0.25 -> -0.25 | T13: 0 | X13: =T13+0.375 -> 0.375 | AB13: =T13+0.75 -> 0.75 | AG13: 0.375 | AN13: XL
B14: FRONT LENGTH (FROM CENTRE FRONT NECK TO HEM) | T14: 0 | AG14: 0.375 | AN14: XXL
B15: CHEST (1" BELOW ARMHOLE) | P15: =T15-1 -> -1 | T15: 0 | X15: =T15+1.5 -> 1.5 | AB15: =T15+3 -> 3 | AG15: 0.375 | AN15: XXXL
B16: WAIST (16 1/2" BELOW HIGH SHOULDER POINT) | P16: =T16-1 -> -1 | T16: 0 | X16: =T16+1.5 -> 1.5 | AB16: =T16+3 -> 3 | AG16: 0.375
B17: TOP HIP ( 19 1/2" BELOW HSP ) | P17: =T17-1 -> -1 | T17: 0 | X17: =T17+1.5 -> 1.5 | AB17: =T17+3 -> 3 | AG17: 0.375
B18: LOW HIP ( 24 1/2" BELOW HIGH SHOULDER POINT) | P18: =T18-1 -> -1 | T18: 0 | X18: =T18+1.5 -> 1.5 | AB18: =T18+3 -> 3 | AG18: 0.375
B19: HEM STRAIGHT | P19: =T19-1 -> -1 | T19: 0 | X19: =T19+1.5 -> 1.5 | AB19: =T19+3 -> 3 | AG19: 0.375
B20: HEM CURVE (FOLLOW) | T20: 0 | AG20: 0.375
B21: ACROSS SHOULDERS | P21: =T21-0.5 -> -0.5 | T21: 0 | X21: =T21+0.75 -> 0.75 | AB21: =T21+1.5 -> 1.5 | AG21: 0.375
B22: ACROSS FRONT (5" BELOW HIGH SHOULDER POINT) | P22: =T22-0.5 -> -0.5 | T22: 0 | X22: =T22+0.75 -> 0.75 | AB22: =T22+1.5 -> 1.5 | AG22: 0.375
B23: ACROSS BACK (5" BELOW HIGH SHOULDER POINT) | P23: =T23-0.5 -> -0.5 | T23: 0 | X23: =T23+0.75 -> 0.75 | AB23: =T23+1.5 -> 1.5 | AG23: 0.375
B24: OVERARM (FROM SLEEVE CAP TO HEM)-SHORT SLEEVE | P24: =T24-0.125 -> -0.125 | T24: 0 | X24: =T24+0.25 -> 0.25 | AB24: =T24+0.5 -> 0.5 | AG24: 0.25
B25: OVERARM (FROM SLEEVE CAP TO HEM)- 3/4 SLEEVE | P25: =T25-0.125 -> -0.125 | T25: 0 | X25: =T25+0.25 -> 0.25 | AB25: =T25+0.5 -> 0.5 | AG25: 0.25
B26: OVERARM (FROM SLEEVE CAP TO HEM)- LONG SLEEVE | P26: =T26-0.125 -> -0.125 | T26: 0 | X26: =T26+0.25 -> 0.25 | AB26: =T26+0.5 -> 0.5 | AG26: 0.375
B27: 1/2 ARMHOLE STRAIGHT | P27: =T27-0.375 -> -0.375 | T27: 0 | X27: =T27+0.625 -> 0.625 | AB27: =T27+1.25 -> 1.25 | AG27: 0.25
B28: BICEP (1" BELOW ARMHOLE) | P28: =T28-0.25 -> -0.25 | T28: 0 | X28: =T28+0.5 -> 0.5 | AB28: =T28+1 -> 1 | AG28: 0.25
B29: ELBOW (8 1/2" BELOW ARMHOLE) | T29: 0 | AG29: 0.25
B30: SHORT SLEEVE OPENING | P30: =T30-0.25 -> -0.25 | T30: 0 | X30: =T30+0.5 -> 0.5 | AB30: =T30+1 -> 1 | AG30: 0.25
B31: 3/4 SLEEVE OPENING | T31: 0 | AG31: 0.25
B32: LONG SLEEVE OPENING | P32: =T32-0.125 -> -0.125 | T32: 0 | X32: =T32+0.25 -> 0.25 | AB32: =T32+0.5 -> 0.5 | AG32: 0.25
B33: SLEEVE CAP HEIGHT ( FROM TOP OF SLEEVE TO UNDERARM ) | P33: =T33-0.125 -> -0.125 | T33: 0 | X33: =T33+0.25 -> 0.25 | AB33: =T33+0.5 -> 0.5 | AG33: 1/4
B34: SHOULDER SLOPE ( HSP TO SHOULDER ARMHOLE SEAM ) | P34: =T34-0 -> 0 | T34: 0 | X34: =T34+0 -> 0 | AB34: =T34+0 -> 0 | AG34: 0
B35: NECK WIDTH (HSP TO HSP) ON BACK | P35: =T35-0.25 -> -0.25 | T35: 0 | X35: =T35+0.375 -> 0.375 | AB35: =T35+0.75 -> 0.75 | AG35: 0.25
B36: FRONT NECK DROP ( FROM HSP TO C.F.NECK EDGE OR SEAM ) | P36: =T36-0.125 -> -0.125 | T36: 0 | X36: =T36+0.25 -> 0.25 | AB36: =T36+0.5 -> 0.5 | AG36: 0.25
B37: BACK NECK DROP ( FROM HSP TO C.B. NECK EDGE OR SEAM ) | P37: =T37-0 -> 0 | T37: 0 | X37: =T37+0 -> 0 | AB37: =T37+0 -> 0 | AG37: 0.25
B38: 1/2 NECK CIRCUMFERENCE | T38: 0 | AG38: 0.25
B39: COLLAR DEPTH ( AT C.B. NECK ) | T39: 0 | AG39: 0
B40: STAND DEPTH | P40: =T40-0 -> 0 | T40: 0 | X40: =T40+0 -> 0 | AB40: =T40+0 -> 0 | AG40: 0
B41: COLLAR LENGTH | T41: 0 | AG41: 0.25
B42: NECK TRIM DEPTH | P42: =T42-0 -> 0 | T42: 0 | X42: =T42+0 -> 0 | AB42: =T42+0 -> 0 | AG42: 0
B43: CUFF DEPTH | P43: =T43-0 -> 0 | T43: 0 | X43: =T43+0 -> 0 | AB43: =T43+0 -> 0 | AG43: 0
B44: SLEEVE HEM DEPTH | P44: =T44-0 -> 0 | T44: 0 | X44: =T44+0 -> 0 | AB44: =T44+0 -> 0 | AG44: 0
B45: BOTTOM HEM DEPTH | P45: =T45-0 -> 0 | T45: 0 | X45: =T45+0 -> 0 | AB45: =T45+0 -> 0 | AG45: 0
B46: BACK HEM WIDTH ( STRAIGHT FROM SEAM TO SEAM ) | P46: =T46-1 -> -1 | T46: 0 | X46: =T46+1.5 -> 1.5 | AB46: =T46+3 -> 3 | AG46: 0.375
B48: HOOD DEPTH AT CENTRE FRONT ( TOP HOOD TO NECK) | P48: =T48-0.375 -> -0.375 | T48: 0 | X48: =T48+0.375 -> 0.375 | AB48: =T48+0.75 -> 0.75 | AG48: 0.25
B49: HOOD DEPTH AT SHOULDER ( TOP HOOD TO SHOULDER SEAM) | P49: =T49-0.375 -> -0.375 | T49: 0 | X49: =T49+0.375 -> 0.375 | AB49: =T49+0.75 -> 0.75 | AG49: 0.25
B50: HOOD WIDTH (4" BELOW TOP OF HOOD) | P50: =T50-0.25 -> -0.25 | T50: 0 | X50: =T50+0.25 -> 0.25 | AB50: =T50+0.5 -> 0.5 | AG50: 0.25
B51: HOOD OVERHEAD ( FOLLOWED ALONG C.B. SEAM ) | P51: =T51-0.625 -> -0.625 | T51: 0 | X51: =T51+0.625 -> 0.625 | AB51: =T51+1.25 -> 1.25 | AG51: 0.375
B52: Sample Approved?
B53: If sample is NOT approved, then submit 2nd Pre-Production Samples. If sample is APPROVED, then submit Production Samples.

Sheet Grade XS-S-M-L-XL (hidden)
L2: Create Date: | Q2: ='Photo Sheet'!Q2:W2 -> AUG 22/2017
L3: Vendor Name: | Q3: ='Photo Sheet'!Q3:AI3 -> 0
L4: Vndr.Item No.: | Q4: ='Photo Sheet'!Q4:W4 -> 0 | AA4: GC Item No.: | AE4: ='Photo Sheet'!AE4:AI4 -> 0
L5: Size Range: | Q5: ='Photo Sheet'!Q5:W5 -> 0-6 MONTHS | AA5: Season: | AD5: Fall Winter 2016
L6: Description: | Q6: ='Photo Sheet'!Q6:AI6 -> BABY- SHORT SLEEVE ONESIE PRINT WITH CHEST DIAGONAL OPENING
B8: GRADE SHEET -- TOP / SWEATER | T8: Date: | AN8: L
B9: (Measurements on flat / inches) | P9: XS | T9: S | X9: M | AB9: L | AD9: XL | AG9: Tolerance + / - (on flat) | AN9: LXL
AN10: M
B11: BACK LENGTH FROM (HIGH SHOULDER POINT) | P11: =X11-1/2 -> -0.5 | T11: =X11-1/4 -> -0.25 | X11: 0 | AB11: =X11+0.375 -> 0.375 | AD11: =X11+0.75 -> 0.75 | AG11: 0.375 | AN11: S
B12: CENTER BACK LENGTH ( FROM NECK TO HEM ) | X12: 0 | AG12: 0.375 | AN12: SM
B13: FRONT LENGTH FROM (HIGH SHOULDER POINT) | P13: =X13-0.5 -> -0.5 | T13: =X13-1/4 -> -0.25 | X13: 0 | AB13: =X13+0.375 -> 0.375 | AD13: =X13+0.75 -> 0.75 | AG13: 0.375 | AN13: XL
B14: FRONT LENGTH (FROM CENTRE FRONT NECK TO HEM) | X14: 0 | AG14: 0.375 | AN14: XXL
B15: CHEST (1" BELOW ARMHOLE) | P15: =X15-2 -> -2 | T15: =X15-1 -> -1 | X15: 0 | AB15: =X15+1.5 -> 1.5 | AD15: =X15+3 -> 3 | AG15: 0.375 | AN15: XXXL
B16: WAIST (16 1/2" BELOW HIGH SHOULDER POINT) | P16: =X16-2 -> -2 | T16: -1 | X16: 0 | AB16: 1.5 | AD16: 3 | AG16: 0.375
B17: TOP HIP ( 19 1/2" BELOW HSP ) | P17: =X17-2 -> -2 | T17: -1 | X17: 0 | AB17: 1.5 | AD17: 3 | AG17: 0.375
B18: LOW HIP ( 24 1/2" BELOW HIGH SHOULDER POINT) | P18: =X18-2 -> -2 | T18: -1 | X18: 0 | AB18: 1.5 | AD18: 3 | AG18: 0.375
B19: HEM STRAIGHT | P19: =X10-2 -> -2 | T19: -1 | X19: 0 | AB19: 1.5 | AD19: 3 | AG19: 0.375
B20: HEM CURVE (FOLLOW) | P20: =X20-2 -> -2 | T20: -1 | X20: 0 | AB20: 1.5 | AD20: 3 | AG20: 0.375
B21: ACROSS SHOULDERS | P21: =X21-1 -> -1 | T21: =X21-0.5 -> -0.5 | X21: 0 | AB21: =X21+0.75 -> 0.75 | AD21: =X21+1.5 -> 1.5 | AG21: 0.375
B22: ACROSS FRONT (5" BELOW HIGH SHOULDER POINT) | P22: =X22-1 -> -1 | T22: =X22-0.5 -> -0.5 | X22: 0 | AB22: =X22+0.75 -> 0.75 | AD22: =X22+1.5 -> 1.5 | AG22: 0.375
B23: ACROSS BACK (5" BELOW HIGH SHOULDER POINT) | P23: =X23-1 -> -1 | T23: =X23-0.5 -> -0.5 | X23: 0 | AB23: =X23+0.75 -> 0.75 | AD23: =X23+1.5 -> 1.5 | AG23: 0.375
B24: OVERARM (FROM SLEEVE CAP TO HEM)-SHORT SLEEVE | P24: =X24-0.25 -> -0.25 | T24: =X24-0.125 -> -0.125 | X24: 0 | AB24: =X24+0.25 -> 0.25 | AD24: =X24+0.5 -> 0.5 | AG24: 0.25
B25: OVERARM (FROM SLEEVE CAP TO HEM)- 3/4 SLEEVE | P25: =X25-0.25 -> -0.25 | T25: =X25-0.125 -> -0.125 | X25: 0 | AB25: =X25+0.25 -> 0.25 | AD25: =X25+0.5 -> 0.5 | AG25: 0.25
B26: OVERARM (FROM SLEEVE CAP TO HEM)- LONG SLEEVE | P26: =X26-0.25 -> -0.25 | T26: =X26-0.125 -> -0.125 | X26: 0 | AB26: =X26+0.25 -> 0.25 | AD26: =X26+0.5 -> 0.5 | AG26: 0.375
B27: 1/2 ARMHOLE STRAIGHT | P27: =X27-0.75 -> -0.75 | T27: =X27-0.375 -> -0.375 | X27: 0 | AB27: =X27+0.625 -> 0.625 | AD27: =X27+1.25 -> 1.25 | AG27: 0.25
B28: BICEP (1" BELOW ARMHOLE) | P28: =X28-0.5 -> -0.5 | T28: =X28-0.25 -> -0.25 | X28: 0 | AB28: =X28+0.5 -> 0.5 | AD28: =X28+1 -> 1 | AG28: 0.25
B29: ELBOW (8 1/2" BELOW ARMHOLE) | X29: 0 | AG29: 0.25
B30: SHORT SLEEVE OPENING | P30: =X30-0.5 -> -0.5 | T30: =X30-0.25 -> -0.25 | X30: 0 | AB30: =X30+0.5 -> 0.5 | AD30: =X30+1 -> 1 | AG30: 0.25
B31: 3/4 SLEEVE OPENING | X31: 0 | AG31: 0.25
B32: LONG SLEEVE OPENING | P32: =X32-0.25 -> -0.25 | T32: =X32-0.125 -> -0.125 | X32: 0 | AB32: =X32+0.25 -> 0.25 | AD32: =X32+0.5 -> 0.5 | AG32: 0.25
B33: SLEEVE CAP HEIGHT ( FROM TOP OF SLEEVE TO UNDERARM ) | P33: =X33-0.25 -> -0.25 | T33: =X33-0.125 -> -0.125 | X33: 0 | AB33: =X33+0.25 -> 0.25 | AD33: =X33+0.5 -> 0.5 | AG33: 1/4
B34: SHOULDER SLOPE ( HSP TO SHOULDER ARMHOLE SEAM ) | P34: =X34-0 -> 0 | T34: =X34-0 -> 0 | X34: 0 | AB34: =X34+0 -> 0 | AD34: =X34+0 -> 0 | AG34: 0
B35: NECK WIDTH (HSP TO HSP) ON BACK | P35: =X35-0.5 -> -0.5 | T35: =X35-0.25 -> -0.25 | X35: 0 | AB35: =X35+0.375 -> 0.375 | AD35: =X35+0.75 -> 0.75 | AG35: 0.25
B36: FRONT NECK DROP ( FROM HSP TO C.F.NECK EDGE OR SEAM ) | P36: =X36-0.25 -> -0.25 | T36: =X36-0.125 -> -0.125 | X36: 0 | AB36: =X36+0.25 -> 0.25 | AD36: =X36+0.5 -> 0.5 | AG36: 0.25
B37: BACK NECK DROP ( FROM HSP TO C.B. NECK EDGE OR SEAM ) | P37: =X37-0 -> 0 | T37: =X37-0 -> 0 | X37: 0 | AB37: =X37+0 -> 0 | AD37: =X37+0 -> 0 | AG37: 0.25
B38: 1/2 NECK CIRCUMFERENCE | X38: 0 | AG38: 0.25
B39: COLLAR DEPTH ( AT C.B. NECK ) | P39: =X39-0 -> 0 | T39: =X39-0 -> 0 | X39: 0 | AB39: =X39+0 -> 0 | AD39: =X39+0 -> 0 | AG39: 0
B40: STAND DEPTH | P40: =X40-0 -> 0 | T40: =X40-0 -> 0 | X40: 0 | AB40: =X40+0 -> 0 | AD40: =X40+0 -> 0 | AG40: 0
B41: COLLAR LENGTH | X41: 0 | AG41: 0.25
B42: NECK TRIM DEPTH | P42: =X42-0 -> 0 | T42: =X42-0 -> 0 | X42: 0 | AB42: =X42+0 -> 0 | AD42: =X42+0 -> 0 | AG42: 0
B43: CUFF DEPTH | P43: =X43-0 -> 0 | T43: =X43-0 -> 0 | X43: 0 | AB43: =X43+0 -> 0 | AD43: =X43+0 -> 0 | AG43: 0
B44: SLEEVE HEM DEPTH | P44: =X44-0 -> 0 | T44: =X44-0 -> 0 | X44: 0 | AB44: =X44+0 -> 0 | AD44: =X44+0 -> 0 | AG44: 0
B45: BOTTOM HEM DEPTH | P45: =X45-0 -> 0 | T45: =X45-0 -> 0 | X45: 0 | AB45: =X45+0 -> 0 | AD45: =X45+0 -> 0 | AG45: 0
B46: BACK HEM WIDTH ( STRAIGHT FROM SEAM TO SEAM ) | P46: =X46-2 -> -2 | T46: =X46-1 -> -1 | X46: 0 | AB46: =X46+1.5 -> 1.5 | AD46: =X46+3 -> 3 | AG46: 0.375
X47: 0
B48: HOOD DEPTH AT CENTRE FRONT ( TOP HOOD TO NECK) | P48: =X48-0.75 -> -0.75 | T48: =X48-0.375 -> -0.375 | X48: 0 | AB48: =X48+0.375 -> 0.375 | AD48: =X48+0.75 -> 0.75 | AG48: 0.25
B49: HOOD DEPTH AT SHOULDER ( TOP HOOD TO SHOULDER SEAM) | P49: =X49-0.75 -> -0.75 | T49: =X49-0.375 -> -0.375 | X49: 0 | AB49: =X49+0.375 -> 0.375 | AD49: =X49+0.75 -> 0.75 | AG49: 0.25
B50: HOOD WIDTH (4" BELOW TOP OF HOOD) | P50: =X50-0.5 -> -0.5 | T50: =X50-0.25 -> -0.25 | X50: 0 | AB50: =X50+0.25 -> 0.25 | AD50: =X50+0.5 -> 0.5 | AG50: 0.25
B51: HOOD OVERHEAD ( FOLLOWED ALONG C.B. SEAM ) | P51: =X51-1.25 -> -1.25 | T51: =X51-0.625 -> -0.625 | X51: 0 | AB51: =X51+0.625 -> 0.625 | AD51: =X51+1.25 -> 1.25 | AG51: 0.375
B52: Sample Approved?
B53: If sample is NOT approved, then submit 2nd Pre-Production Samples. If sample is APPROVED, then submit Production Samples.

Sheet Grade SM - LXL (hidden)
L2: Create Date: | Q2: ='Photo Sheet'!Q2:W2 -> AUG 22/2017
L3: Vendor Name: | Q3: ='Photo Sheet'!Q3:AI3 -> 0
L4: Vndr.Item No.: | Q4: ='Photo Sheet'!Q4:W4 -> 0 | AA4: GC Item No.: | AE4: ='Photo Sheet'!AE4:AI4 -> 0
L5: Size Range: | Q5: ='Photo Sheet'!Q5:W5 -> 0-6 MONTHS | AA5: Season: | AD5: Fall Winter 2016
L6: Description: | Q6: ='Photo Sheet'!Q6:AI6 -> BABY- SHORT SLEEVE ONESIE PRINT WITH CHEST DIAGONAL OPENING
B8: GRADE SHEET -- TOP / SWEATER | T8: Date: | AN8: L
B9: (Measurements on flat / inches) | T9: SM | X9: LXL | AG9: Tolerance + / - (on flat) | AN9: LXL
AN10: M
B11: BACK LENGTH FROM (HIGH SHOULDER POINT) | T11: 0 | X11: =T11+0.625 -> 0.625 | AG11: 0.375 | AN11: S
B12: CENTER BACK LENGTH ( FROM NECK TO HEM ) | T12: 0 | AG12: 0.375 | AN12: SM
B13: FRONT LENGTH FROM (HIGH SHOULDER POINT) | T13: 0 | X13: =T13+0.625 -> 0.625 | AG13: 0.375 | AN13: XL
B14: FRONT LENGTH (FROM CENTRE FRONT NECK TO HEM) | T14: 0 | AG14: 0.375 | AN14: XXL
B15: CHEST (1" BELOW ARMHOLE) | T15: 0 | X15: =T15+2.5 -> 2.5 | AG15: 0.375 | AN15: XXXL
B16: WAIST (16 1/2" BELOW HIGH SHOULDER POINT) | T16: 0 | X16: =T16+2.5 -> 2.5 | AG16: 0.375
B17: TOP HIP ( 19 1/2" BELOW HSP ) | T17: 0 | X17: =T17+2.5 -> 2.5 | AG17: 0.375
B18: LOW HIP ( 24 1/2" BELOW HIGH SHOULDER POINT) | T18: 0 | X18: =T18+2.5 -> 2.5 | AG18: 0.375
B19: HEM STRAIGHT | T19: 0 | X19: =T19+2.5 -> 2.5 | AG19: 0.375
B20: HEM CURVE (FOLLOW) | T20: 0 | AG20: 0.375
B21: ACROSS SHOULDERS | T21: 0 | X21: =T21+1.25 -> 1.25 | AG21: 0.375
B22: ACROSS FRONT (5" BELOW HIGH SHOULDER POINT) | T22: 0 | X22: =T22+1.25 -> 1.25 | AG22: 0.375
B23: ACROSS BACK (5" BELOW HIGH SHOULDER POINT) | T23: 0 | X23: =T23+1.25 -> 1.25 | AG23: 0.375
B24: OVERARM (FROM SLEEVE CAP TO HEM)-SHORT SLEEVE | T24: 0 | X24: =T24+0.375 -> 0.375 | AG24: 0.25
B25: OVERARM (FROM SLEEVE CAP TO HEM)- 3/4 SLEEVE | T25: 0 | X25: =T25+0.375 -> 0.375 | AG25: 0.25
B26: OVERARM (FROM SLEEVE CAP TO HEM)- LONG SLEEVE | T26: 0 | X26: =T26+0.375 -> 0.375 | AG26: 0.375
B27: 1/2 ARMHOLE STRAIGHT | T27: 0 | X27: =T27+1 -> 1 | AG27: 0.25
B28: BICEP (1" BELOW ARMHOLE) | T28: 0 | X28: =T28+0.75 -> 0.75 | AG28: 0.25
B29: ELBOW (8 1/2" BELOW ARMHOLE) | T29: 0 | X29: =T29+0.625 -> 0.625 | AG29: 0.25
B30: SHORT SLEEVE OPENING | T30: 0 | X30: =T30+0.75 -> 0.75 | AG30: 0.25
B31: 3/4 SLEEVE OPENING | T31: 0 | X31: =T31+0.5 -> 0.5 | AG31: 0.25
B32: LONG SLEEVE OPENING | T32: 0 | X32: =T32+0.375 -> 0.375 | AG32: 0.25
B33: SLEEVE CAP HEIGHT ( FROM TOP OF SLEEVE TO UNDERARM ) | T33: 0 | X33: =T33+0.375 -> 0.375 | AG33: 1/4
B34: SHOULDER SLOPE ( HSP TO SHOULDER ARMHOLE SEAM ) | T34: 0 | X34: =T34+0 -> 0 | AG34: 0
B35: NECK WIDTH (HSP TO HSP) ON BACK | T35: 0 | X35: =T35+0.625 -> 0.625 | AG35: 0.25
B36: FRONT NECK DROP ( FROM HSP TO C.F.NECK EDGE OR SEAM ) | T36: 0 | X36: =T36+0.375 -> 0.375 | AG36: 0.25
B37: BACK NECK DROP ( FROM HSP TO C.B. NECK EDGE OR SEAM ) | T37: 0 | X37: =T37+0 -> 0 | AG37: 0.25
B38: 1/2 NECK CIRCUMFERENCE | T38: 0 | AG38: 0.25
B39: COLLAR DEPTH ( AT C.B. NECK ) | T39: 0 | X39: =T39+0 -> 0 | AG39: 0
B40: STAND DEPTH | T40: 0 | X40: =T40+0 -> 0 | AG40: 0
B41: COLLAR LENGTH | T41: 0 | AG41: 0.25
B42: NECK TRIM DEPTH | T42: 0 | X42: =T42+0 -> 0 | AG42: 0
B43: CUFF DEPTH | T43: 0 | X43: =T43+0 -> 0 | AG43: 0
B44: SLEEVE HEM DEPTH | T44: 0 | X44: =T44+0 -> 0 | AG44: 0
B45: BOTTOM HEM DEPTH | T45: 0 | X45: =T45+0 -> 0 | AG45: 0
B46: BACK HEM WIDTH ( STRAIGHT FROM SEAM TO SEAM ) | T46: 0 | X46: =T46+2.5 -> 2.5 | AG46: 0.375
B48: HOOD DEPTH AT CENTRE FRONT ( TOP HOOD TO NECK) | T48: 0 | X48: =T48+0.375 -> 0.375 | AG48: 0.25
B49: HOOD DEPTH AT SHOULDER ( TOP HOOD TO SHOULDER SEAM) | T49: 0 | X49: =T49+0.375 -> 0.375 | AG49: 0.25
B50: HOOD WIDTH (4" BELOW TOP OF HOOD) | T50: 0 | X50: =T50+0.25 -> 0.25 | AG50: 0.25
B51: HOOD OVERHEAD ( FOLLOWED ALONG C.B. SEAM ) | T51: 0 | X51: =T51+0.625 -> 0.625 | AG51: 0.375
B52: Sample Approved?
B53: If sample is NOT approved, then submit 2nd Pre-Production Samples. If sample is APPROVED, then submit Production Samples.

Sheet Grade XS - SM - LXL (hidden)
L2: Create Date: | Q2: ='Photo Sheet'!Q2:W2 -> AUG 22/2017
L3: Vendor Name: | Q3: ='Photo Sheet'!Q3:AI3 -> 0
L4: Vndr.Item No.: | Q4: ='Photo Sheet'!Q4:W4 -> 0 | AA4: GC Item No.: | AE4: ='Photo Sheet'!AE4:AI4 -> 0
L5: Size Range: | Q5: ='Photo Sheet'!Q5:W5 -> 0-6 MONTHS | AA5: Season: | AD5: Fall Winter 2016
L6: Description: | Q6: ='Photo Sheet'!Q6:AI6 -> BABY- SHORT SLEEVE ONESIE PRINT WITH CHEST DIAGONAL OPENING
B8: GRADE SHEET -- TOP / SWEATER | T8: Date: | AN8: L
B9: (Measurements on flat / inches) | P9: XS | T9: SM | X9: LXL | AG9: Tolerance + / - (on flat) | AN9: LXL
AN10: M
B11: BACK LENGTH FROM (HIGH SHOULDER POINT) | P11: =T11-0.375 -> -0.375 | T11: 0 | X11: =T11+0.625 -> 0.625 | AG11: 0.375 | AN11: S
B12: CENTER BACK LENGTH ( FROM NECK TO HEM ) | T12: 0 | AG12: 0.375 | AN12: SM
B13: FRONT LENGTH FROM (HIGH SHOULDER POINT) | P13: =T13-0.375 -> -0.375 | T13: 0 | X13: =T13+0.625 -> 0.625 | AG13: 0.375 | AN13: XL
B14: FRONT LENGTH (FROM CENTRE FRONT NECK TO HEM) | T14: 0 | AG14: 0.375 | AN14: XXL
B15: CHEST (1" BELOW ARMHOLE) | P15: =T15-1.5 -> -1.5 | T15: 0 | X15: =T15+2.5 -> 2.5 | AG15: 0.375 | AN15: XXXL
B16: WAIST (16 1/2" BELOW HIGH SHOULDER POINT) | P16: =T16-1.5 -> -1.5 | T16: 0 | X16: =T16+2.5 -> 2.5 | AG16: 0.375
B17: TOP HIP ( 19 1/2" BELOW HSP ) | P17: =T17-1.5 -> -1.5 | T17: 0 | X17: =T17+2.5 -> 2.5 | AG17: 0.375
B18: LOW HIP ( 24 1/2" BELOW HIGH SHOULDER POINT) | P18: =T18-1.5 -> -1.5 | T18: 0 | X18: =T18+2.5 -> 2.5 | AG18: 0.375
B19: HEM STRAIGHT | P19: =T19-1.5 -> -1.5 | T19: 0 | X19: =T19+2.5 -> 2.5 | AG19: 0.375
B20: HEM CURVE (FOLLOW) | T20: 0 | AG20: 0.375
B21: ACROSS SHOULDERS | P21: =T21-0.75 -> -0.75 | T21: 0 | X21: =T21+1.25 -> 1.25 | AG21: 0.375
B22: ACROSS FRONT (5" BELOW HIGH SHOULDER POINT) | P22: =T22-0.75 -> -0.75 | T22: 0 | X22: =T22+1.25 -> 1.25 | AG22: 0.375
B23: ACROSS BACK (5" BELOW HIGH SHOULDER POINT) | P23: =T23-0.75 -> -0.75 | T23: 0 | X23: =T23+1.25 -> 1.25 | AG23: 0.375
B24: OVERARM (FROM SLEEVE CAP TO HEM)-SHORT SLEEVE | P24: =T24-0.25 -> -0.25 | T24: 0 | X24: =T24+0.375 -> 0.375 | AG24: 0.25
B25: OVERARM (FROM SLEEVE CAP TO HEM)- 3/4 SLEEVE | P25: =T25-0.25 -> -0.25 | T25: 0 | X25: =T25+0.375 -> 0.375 | AG25: 0.25
B26: OVERARM (FROM SLEEVE CAP TO HEM)- LONG SLEEVE | P26: =T26-0.25 -> -0.25 | T26: 0 | X26: =T26+0.375 -> 0.375 | AG26: 0.375
B27: 1/2 ARMHOLE STRAIGHT | P27: =T27-0.625 -> -0.625 | T27: 0 | X27: =T27+1 -> 1 | AG27: 0.25
B28: BICEP (1" BELOW ARMHOLE) | P28: =T28-0.5 -> -0.5 | T28: 0 | X28: =T28+0.75 -> 0.75 | AG28: 0.25
B29: ELBOW (8 1/2" BELOW ARMHOLE) | T29: 0 | X29: =T29+0.625 -> 0.625 | AG29: 0.25
B30: SHORT SLEEVE OPENING | P30: =T30-0.5 -> -0.5 | T30: 0 | X30: =T30+0.75 -> 0.75 | AG30: 0.25
B31: 3/4 SLEEVE OPENING | T31: 0 | X31: =T31+0.5 -> 0.5 | AG31: 0.25
B32: LONG SLEEVE OPENING | P32: =T32-0.25 -> -0.25 | T32: 0 | X32: =T32+0.375 -> 0.375 | AG32: 0.25
B33: SLEEVE CAP HEIGHT ( FROM TOP OF SLEEVE TO UNDERARM ) | P33: =T33-0.25 -> -0.25 | T33: 0 | X33: =T33+0.375 -> 0.375 | AG33: 1/4
B34: SHOULDER SLOPE ( HSP TO SHOULDER ARMHOLE SEAM ) | P34: =T34-0 -> 0 | T34: 0 | X34: =T34+0 -> 0 | AG34: 0
B35: NECK WIDTH (HSP TO HSP) ON BACK | P35: =T35-0.375 -> -0.375 | T35: 0 | X35: =T35+0.625 -> 0.625 | AG35: 0.25
B36: FRONT NECK DROP ( FROM HSP TO C.F.NECK EDGE OR SEAM ) | P36: =T36-0.25 -> -0.25 | T36: 0 | X36: =T36+0.375 -> 0.375 | AG36: 0.25
B37: BACK NECK DROP ( FROM HSP TO C.B. NECK EDGE OR SEAM ) | P37: =T37-0 -> 0 | T37: 0 | X37: =T37+0 -> 0 | AG37: 0.25
B38: 1/2 NECK CIRCUMFERENCE | T38: 0 | AG38: 0.25
B39: COLLAR DEPTH ( AT C.B. NECK ) | P39: =T39-0 -> 0 | T39: 0 | X39: =T39+0 -> 0 | AG39: 0
B40: STAND DEPTH | P40: =T40-0 -> 0 | T40: 0 | X40: =T40+0 -> 0 | AG40: 0
B41: COLLAR LENGTH | T41: 0 | AG41: 0.25
B42: NECK TRIM DEPTH | P42: =T42-0 -> 0 | T42: 0 | X42: =T42+0 -> 0 | AG42: 0
B43: CUFF DEPTH | P43: =T43-0 -> 0 | T43: 0 | X43: =T43+0 -> 0 | AG43: 0
B44: SLEEVE HEM DEPTH | P44: =T44-0 -> 0 | T44: 0 | X44: =T44+0 -> 0 | AG44: 0
B45: BOTTOM HEM DEPTH | P45: =T45-0 -> 0 | T45: 0 | X45: =T45+0 -> 0 | AG45: 0
B46: BACK HEM WIDTH ( STRAIGHT FROM SEAM TO SEAM ) | P46: =T46-1.5 -> -1.5 | T46: 0 | X46: =T46+2.5 -> 2.5 | AG46: 0.375
B48: HOOD DEPTH AT CENTRE FRONT ( TOP HOOD TO NECK) | P48: =T48-0.375 -> -0.375 | T48: 0 | X48: =T48+0.375 -> 0.375 | AG48: 0.25
B49: HOOD DEPTH AT SHOULDER ( TOP HOOD TO SHOULDER SEAM) | P49: =T49-0.375 -> -0.375 | T49: 0 | X49: =T49+0.375 -> 0.375 | AG49: 0.25
B50: HOOD WIDTH (4" BELOW TOP OF HOOD) | P50: =T50-0.25 -> -0.25 | T50: 0 | X50: =T50+0.25 -> 0.25 | AG50: 0.25
B51: HOOD OVERHEAD ( FOLLOWED ALONG C.B. SEAM ) | P51: =T51-0.625 -> -0.625 | T51: 0 | X51: =T51+0.625 -> 0.625 | AG51: 0.375
B52: Sample Approved?
B53: If sample is NOT approved, then submit 2nd Pre-Production Samples. If sample is APPROVED, then submit Production Samples.

Sheet Grade S-M-L (hidden)
L2: Create Date: | Q2: ='Photo Sheet'!Q2:W2 -> AUG 22/2017
L3: Vendor Name: | Q3: ='Photo Sheet'!Q3:AI3 -> 0
L4: Vndr.Item No.: | Q4: ='Photo Sheet'!Q4:W4 -> 0 | AA4: GC Item No.: | AE4: ='Photo Sheet'!AE4:AI4 -> 0
L5: Size Range: | Q5: ='Photo Sheet'!Q5:W5 -> 0-6 MONTHS | AA5: Season: | AD5: Fall Winter 2016
L6: Description: | Q6: ='Photo Sheet'!Q6:AI6 -> BABY- SHORT SLEEVE ONESIE PRINT WITH CHEST DIAGONAL OPENING
B8: GRADE SHEET -- TOP / SWEATER | T8: Date: | AN8: L
B9: (Measurements on flat / inches) | P9: S | T9: M | X9: L | AG9: Tolerance + / - (on flat) | AN9: LXL
AN10: M
B11: BACK LENGTH FROM (HIGH SHOULDER POINT) | P11: =T11-0.375 -> -0.375 | T11: 0 | X11: =T11+0.5 -> 0.5 | AG11: 0.375 | AN11: S
B12: CENTER BACK LENGTH ( FROM NECK TO HEM ) | T12: 0 | AG12: 0.375 | AN12: SM
B13: FRONT LENGTH FROM (HIGH SHOULDER POINT) | P13: =T13-0.375 -> -0.375 | T13: 0 | X13: =T13+0.5 -> 0.5 | AG13: 0.375 | AN13: XL
B14: FRONT LENGTH (FROM CENTRE FRONT NECK TO HEM) | T14: 0 | AG14: 0.375 | AN14: XXL
B15: CHEST (1" BELOW ARMHOLE) | P15: =T15-1.5 -> -1.5 | T15: 0 | X15: =T15+2 -> 2 | AG15: 0.375 | AN15: XXXL
B16: WAIST (16 1/2" BELOW HIGH SHOULDER POINT) | P16: =T16-1.5 -> -1.5 | T16: 0 | X16: =T16+2 -> 2 | AG16: 0.375
B17: TOP HIP ( 19 1/2" BELOW HSP ) | P17: =T17-1.5 -> -1.5 | T17: 0 | X17: =T17+2 -> 2 | AG17: 0.375
B18: LOW HIP ( 24 1/2" BELOW HIGH SHOULDER POINT) | P18: =T18-1.5 -> -1.5 | T18: 0 | X18: =T18+2 -> 2 | AG18: 0.375
B19: HEM STRAIGHT | P19: =T19-1.5 -> -1.5 | T19: 0 | X19: =T19+2 -> 2 | AG19: 0.375
B20: HEM CURVE (FOLLOW) | T20: 0 | AG20: 0.375
B21: ACROSS SHOULDERS | P21: =T21-0.75 -> -0.75 | T21: 0 | X21: =T21+1 -> 1 | AG21: 0.375
B22: ACROSS FRONT (5" BELOW HIGH SHOULDER POINT) | P22: =T22-0.75 -> -0.75 | T22: 0 | X22: =T22+1 -> 1 | AG22: 0.375
B23: ACROSS BACK (5" BELOW HIGH SHOULDER POINT) | P23: =T23-0.75 -> -0.75 | T23: 0 | X23: =T23+1 -> 1 | AG23: 0.375
B24: OVERARM (FROM SLEEVE CAP TO HEM)-SHORT SLEEVE | P24: =T24-0.25 -> -0.25 | T24: 0 | X24: =T24+0.25 -> 0.25 | AG24: 0.25
B25: OVERARM (FROM SLEEVE CAP TO HEM)- 3/4 SLEEVE | P25: =T52-0.25 -> -0.25 | T25: 0 | X25: =T25+0.25 -> 0.25 | AG25: 0.25
B26: OVERARM (FROM SLEEVE CAP TO HEM)- LONG SLEEVE | P26: =T26-0.25 -> -0.25 | T26: 0 | X26: =T26+0.25 -> 0.25 | AG26: 0.375
B27: 1/2 ARMHOLE STRAIGHT | P27: =T27-0.625 -> -0.625 | T27: 0 | X27: =T27+0.75 -> 0.75 | AG27: 0.25
B28: BICEP (1" BELOW ARMHOLE) | P28: =T28-0.5 -> -0.5 | T28: 0 | X28: =T28+0.5 -> 0.5 | AG28: 0.25
B29: ELBOW (8 1/2" BELOW ARMHOLE) | P29: =T29-0.375 -> -0.375 | T29: 0 | X29: =T29+0.375 -> 0.375 | AG29: 0.25
B30: SHORT SLEEVE OPENING | P30: =T30-0.5 -> -0.5 | T30: 0 | X30: =T30+0.5 -> 0.5 | AG30: 0.25
B31: 3/4 SLEEVE OPENING | P31: =T31-0.375 -> -0.375 | T31: 0 | X31: =T31+0.375 -> 0.375 | AG31: 0.25
B32: LONG SLEEVE OPENING | P32: =T32-0.25 -> -0.25 | T32: 0 | X32: =T32+0.25 -> 0.25 | AG32: 0.25
B33: SLEEVE CAP HEIGHT ( FROM TOP OF SLEEVE TO UNDERARM ) | P33: =T33-0.25 -> -0.25 | T33: 0 | X33: =T33+0.25 -> 0.25 | AG33: 1/4
B34: SHOULDER SLOPE ( HSP TO SHOULDER ARMHOLE SEAM ) | P34: =T34-0 -> 0 | T34: 0 | X34: =T34+0 -> 0 | AG34: 0
B35: NECK WIDTH (HSP TO HSP) ON BACK | P35: =T35-0.375 -> -0.375 | T35: 0 | X35: =T35+0.5 -> 0.5 | AG35: 0.25
B36: FRONT NECK DROP ( FROM HSP TO C.F.NECK EDGE OR SEAM ) | P36: =T36-0.25 -> -0.25 | T36: 0 | X36: =T36+0.25 -> 0.25 | AG36: 0.25
B37: BACK NECK DROP ( FROM HSP TO C.B. NECK EDGE OR SEAM ) | P37: =T37-0 -> 0 | T37: 0 | X37: =T37+0 -> 0 | AG37: 0.25
B38: 1/2 NECK CIRCUMFERENCE | T38: 0 | AG38: 0.25
B39: COLLAR DEPTH ( AT C.B. NECK ) | P39: =T39-0 -> 0 | T39: 0 | X39: =T39+0 -> 0 | AG39: 0
B40: STAND DEPTH | P40: =T40-0 -> 0 | T40: 0 | X40: =T40+0 -> 0 | AG40: 0
B41: COLLAR LENGTH | T41: 0 | AG41: 0.25
B42: NECK TRIM DEPTH | P42: =T42-0 -> 0 | T42: 0 | X42: =T42+0 -> 0 | AG42: 0
B43: CUFF DEPTH | P43: =T43-0 -> 0 | T43: 0 | X43: =T43+0 -> 0 | AG43: 0
B44: SLEEVE HEM DEPTH | P44: =T44-0 -> 0 | T44: 0 | X44: =T44+0 -> 0 | AG44: 0
B45: BOTTOM HEM DEPTH | P45: =T45-0 -> 0 | T45: 0 | X45: =T45+0 -> 0 | AG45: 0
B46: BACK HEM WIDTH ( STRAIGHT FROM SEAM TO SEAM ) | T46: 0 | AG46: 0.375
B48: HOOD DEPTH AT CENTRE FRONT ( TOP HOOD TO NECK) | P48: =T48-0.375 -> -0.375 | T48: 0 | X48: =T48+0.375 -> 0.375 | AG48: 0.25
B49: HOOD DEPTH AT SHOULDER ( TOP HOOD TO SHOULDER SEAM) | P49: =T49-0.375 -> -0.375 | T49: 0 | X49: =T49+0.375 -> 0.375 | AG49: 0.25
B50: HOOD WIDTH (4" BELOW TOP OF HOOD) | P50: =T50-0.25 -> -0.25 | T50: 0 | X50: =T50+0.25 -> 0.25 | AG50: 0.25
B51: HOOD OVERHEAD ( FOLLOWED ALONG C.B. SEAM ) | P51: =T51-0.625 -> -0.625 | T51: 0 | X51: =T51+0.625 -> 0.625 | AG51: 0.375
B52: Sample Approved?
B53: If sample is NOT approved, then submit 2nd Pre-Production Samples. If sample is APPROVED, then submit Production Samples.

Sheet Grade OS (hidden)
L2: Create Date: | Q2: ='Photo Sheet'!Q2:W2 -> AUG 22/2017
L3: Vendor Name: | Q3: ='Photo Sheet'!Q3:AI3 -> 0
L4: Vndr.Item No.: | Q4: ='Photo Sheet'!Q4:W4 -> 0 | AA4: GC Item No.: | AE4: ='Photo Sheet'!AE4:AI4 -> 0
L5: Size Range: | Q5: ='Photo Sheet'!Q5:W5 -> 0-6 MONTHS | AA5: Season: | AD5: Fall Winter 2016
L6: Description: | Q6: ='Photo Sheet'!Q6:AI6 -> BABY- SHORT SLEEVE ONESIE PRINT WITH CHEST DIAGONAL OPENING
B8: GRADE BABY APPAREL SPEC SHEET -- ONSIE | T8: Date: | AN8: L
B9: (Measurements on flat / inches) | T9: OS | AG9: Tolerance + / - (on flat) | AN9: LXL
AN10: M
B11: BACK LENGTH FROM (HIGH SHOULDER POINT) | T11: 0 | AG11: 0.375 | AN11: S
B12: CENTER BACK LENGTH ( FROM NECK TO HEM ) | T12: 0 | AG12: 0.375 | AN12: SM
B13: FRONT LENGTH FROM (HIGH SHOULDER POINT) | T13: 0 | AG13: 0.375 | AN13: XL
B14: FRONT LENGTH (FROM CENTRE FRONT NECK TO HEM) | T14: 0 | AG14: 0.375 | AN14: XXL
B15: CHEST (1" BELOW ARMHOLE) | T15: 0 | AG15: 0.375 | AN15: XXXL
B16: WAIST (16 1/2" BELOW HIGH SHOULDER POINT) | T16: 0 | AG16: 0.375
B17: TOP HIP ( 19 1/2" BELOW HSP ) | T17: 0 | AG17: 0.375
B18: LOW HIP ( 24 1/2" BELOW HIGH SHOULDER POINT) | T18: 0 | AG18: 0.375
B19: HEM STRAIGHT | T19: 0 | AG19: 0.375
B20: HEM CURVE (FOLLOW) | T20: 0 | AG20: 0.375
B21: ACROSS SHOULDERS | T21: 0 | AG21: 0.375
B22: ACROSS FRONT (5" BELOW HIGH SHOULDER POINT) | T22: 0 | AG22: 0.375
B23: ACROSS BACK (5" BELOW HIGH SHOULDER POINT) | T23: 0 | AG23: 0.375
B24: OVERARM (FROM SLEEVE CAP TO HEM)-SHORT SLEEVE | T24: 0 | AG24: 0.25
B25: OVERARM (FROM SLEEVE CAP TO HEM)- 3/4 SLEEVE | T25: 0 | AG25: 0.25
B26: OVERARM (FROM SLEEVE CAP TO HEM)- LONG SLEEVE | T26: 0 | AG26: 0.375
B27: 1/2 ARMHOLE STRAIGHT | T27: 0 | AG27: 0.25
B28: BICEP (1" BELOW ARMHOLE) | T28: 0 | AG28: 0.25
B29: ELBOW (8 1/2" BELOW ARMHOLE) | T29: 0 | AG29: 0.25
B30: SHORT SLEEVE OPENING | T30: 0 | AG30: 0.25
B31: 3/4 SLEEVE OPENING | T31: 0 | AG31: 0.25
B32: LONG SLEEVE OPENING | T32: 0 | AG32: 0.25
B33: SLEEVE CAP HEIGHT ( FROM TOP OF SLEEVE TO UNDERARM ) | T33: 0 | AG33: 1/4
B34: SHOULDER SLOPE ( HSP TO SHOULDER ARMHOLE SEAM ) | T34: 0 | AG34: 0
B35: NECK WIDTH (HSP TO HSP) ON BACK | T35: 0 | AG35: 0.25
B36: FRONT NECK DROP ( FROM HSP TO C.F.NECK EDGE OR SEAM ) | T36: 0 | AG36: 0.25
B37: BACK NECK DROP ( FROM HSP TO C.B. NECK EDGE OR SEAM ) | T37: 0 | AG37: 0.25
B38: 1/2 NECK CIRCUMFERENCE | T38: 0 | AG38: 0.25
B39: COLLAR DEPTH ( AT C.B. NECK ) | T39: 0 | AG39: 0
B40: STAND DEPTH | T40: 0 | AG40: 0
B41: COLLAR LENGTH | T41: 0 | AG41: 0.25
B42: NECK TRIM DEPTH | T42: 0 | AG42: 0
B43: CUFF DEPTH | T43: 0 | AG43: 0
B44: SLEEVE HEM DEPTH | T44: 0 | AG44: 0
B45: BOTTOM HEM DEPTH | T45: 0 | AG45: 0
B46: BACK HEM WIDTH ( STRAIGHT FROM SEAM TO SEAM ) | T46: 0 | AG46: 0.375
B48: HOOD DEPTH AT CENTRE FRONT ( TOP HOOD TO NECK) | T48: 0 | AG48: 0.25
B49: HOOD DEPTH AT SHOULDER ( TOP HOOD TO SHOULDER SEAM) | T49: 0 | AG49: 0.25
B50: HOOD WIDTH (4" BELOW TOP OF HOOD) | T50: 0 | AG50: 0.25
B51: HOOD OVERHEAD ( FOLLOWED ALONG C.B. SEAM ) | T51: 0 | AG51: 0.375
B52: Sample Approved?
B53: If sample is NOT approved, then submit 2nd Pre-Production Samples. If sample is APPROVED, then submit Production Samples.

Sheet Labels (hidden)
L2: Create Date: | Q2: ='Photo Sheet'!Q2:W2 -> AUG 22/2017
L3: Vendor Name: | Q3: ='Photo Sheet'!Q3:AI3 -> 0
L4: Vndr.Item No.: | Q4: ='Photo Sheet'!Q4:W4 -> 0 | AA4: GC Item No.: | AE4: ='Photo Sheet'!AE4:AI4 -> 0
L5: Size Range: | Q5: ='Photo Sheet'!Q5:W5 -> 0-6 MONTHS | AA5: Season: | AD5: Fall Winter 2016
L6: Description: | Q6: ='Photo Sheet'!Q6:AI6 -> BABY- SHORT SLEEVE ONESIE PRINT WITH CHEST DIAGONAL OPENING
B8: LABELS | T8: Date: | AN8: L
AN9: LXL
AN10: M
AN11: S
AN12: SM
AN13: XL
AN14: XXL
AN15: XXXL

Sheet Pre-Production Sample (hidden)
L2: Create Date: | Q2: ='Photo Sheet'!Q2:W2 -> AUG 22/2017
L3: Vendor Name: | Q3: ='Photo Sheet'!Q3:AI3 -> 0
L4: Vndr.Item No.: | Q4: ='Photo Sheet'!Q4:W4 -> 0 | AA4: GC Item No.: | AE4: ='Photo Sheet'!AE4:AI4 -> 0
L5: Size Range: | Q5: ='Photo Sheet'!Q5:W5 -> 0-6 MONTHS | AA5: Season: | AD5: Fall Winter 2016
L6: Description: | Q6: ='Photo Sheet'!Q6:AI6 -> BABY- SHORT SLEEVE ONESIE PRINT WITH CHEST DIAGONAL OPENING
B8: PRE-PRODUCTION COMMENTS --ONSIE | T8: Date: | AN8: S
B9: (Measurements on flat / inches) | P9: S | T9: M | X9: L | AB9: XL | AG9: Tolerance + / - (on flat) | AN9: M
AN10: L
B11: ='Apparel Spec Sheet'!B11:O11 -> BACK TORSO LENGTH( HSP TO BACK CROTH -UNDOMED) | AG11: 0.375 | AN11: XL
B12: ='Apparel Spec Sheet'!B12:O12 -> CENTER BACK LENGTH( C.B. NECK TO HEM | AG12: 0.375 | AN12: SM
B13: ='Apparel Spec Sheet'!B14:O14 -> CHEST( 1/2" BELOW ARMHOLE | AG13: 0.375 | AN13: LXL
B14: FRONT LENGTH (FROM CENTRE FRONT NECK TO HEM) | AG14: 0.375 | AN14: OS
B15: ='Apparel Spec Sheet'!B15:O15 -> WAIST | AG15: 0.375 | AN15: 1X
B16: ='Apparel Spec Sheet'!B16:O16 -> HIP ( TOP OF LEG OPENING) | AG16: 0.375 | AN16: 2X
B17: ='Apparel Spec Sheet'!B17:O17 -> HEM STRAIGHT | AG17: 0.375 | AN17: 3X
B18: ='Apparel Spec Sheet'!B18:O18 -> ACROSS SHOULDERS | AG18: 0.375
B19: ='Apparel Spec Sheet'!B19:O19 -> SHOULDER SEAM LENGTH | AG19: 0.375
B20: HEM CURVE (FOLLOW) | AG20: 0.375
B21: ='Apparel Spec Sheet'!B21:O21 -> ACROSS BACK ( MID ARMHOLE) | AG21: 0.375
B22: ='Apparel Spec Sheet'!B22:O22 -> RAGLAN ACROSS FRONT ( MID ARMHOLE) | AG22: 0.375
B23: ='Apparel Spec Sheet'!B23:O23 -> RAGLAN ACROSS BACK ( MIS ARMHOLE) | AG23: 0.375
B24: ='Apparel Spec Sheet'!B24:O24 -> OVERARM - SLEEVE CAP TO HEM - SHORT SLEEVE | AG24: 0.25
B25: ='Apparel Spec Sheet'!B25:O25 -> OVERARM - SLEEVE CAP TO HEM - 3/4 SLEEVE | AG25: 0.25
B26: ='Apparel Spec Sheet'!B26:O26 -> OVERARM - SLEEVE CAP TO HEM - LONG SLEEVE | AG26: 0.375
B27: ='Apparel Spec Sheet'!B27:O27 -> OVERARM ( NECK TO SLEEVE HEM) | AG27: 0.25
B28: ='Apparel Spec Sheet'!B28:O28 -> 1/2 ARMHOLE STRAIGHT | AG28: 0.25
B29: ='Apparel Spec Sheet'!B29:O29 -> FRONT RAGLAN LENGTH ON SEAM | AG29: 0.25
B30: ='Apparel Spec Sheet'!B30:O30 -> BACK RAGLAN LENGTH ON SEAM | AG30: 0.25
B31: ='Apparel Spec Sheet'!B31:O31 -> BICEP ( AT ARMHOLE SEAM) | AG31: 0.25
B32: ='Apparel Spec Sheet'!B32:O32 -> ELBOW | AG32: 0.25
B33: ='Apparel Spec Sheet'!B33:O33 -> SHORT SLEEVE OPENING | AG33: 1/4
B34: ='Apparel Spec Sheet'!B34:O34 -> 3/4 SLEEVE OPENING | AG34: 0
B35: ='Apparel Spec Sheet'!B35:O35 -> LONG SLEEVE OPENING | AG35: 0.25
B36: ='Apparel Spec Sheet'!B36:O36 -> SLEEEVE CAP HEIGHT | AG36: 0.25
B37: ='Apparel Spec Sheet'!B37:O37 -> NECK WIDTH ( ON BACK BETWEEN TRIM) | AG37: 0.25
B38: ='Apparel Spec Sheet'!B38:O38 -> FRONT NECK DROP | AG38: 0.25
B39: ='Apparel Spec Sheet'!B39:O39 -> BACK NECK DROP | AG39: 0
B40: ='Apparel Spec Sheet'!B40:O40 -> 1/2 NECK CIRECUMFERENCE - RELAXED | AG40: 0
B41: ='Apparel Spec Sheet'!B41:O41 -> 1/2 NECK CIRECUMFERENCE -EXTENDED | AG41: 0.25
B42: ='Apparel Spec Sheet'!B42:O42 -> COLLAR DEPTH AT C.B NECK | AG42: 0
B43: ='Apparel Spec Sheet'!B43:O43 -> NECK TRIM DEPTH | AG43: 0
B44: ='Apparel Spec Sheet'!B44:O44 -> CUFF DEPTH | AG44: 0
B45: ='Apparel Spec Sheet'!B45:O45 -> SLEEVE HEM DEPTH | AG45: 0
B46: ='Apparel Spec Sheet'!B46:O46 -> BOTTOM HEM DEPTH | AG46: 0.375
B47: ='Apparel Spec Sheet'!B47:O47 -> THIGH ( 1/2" BELOW CROTCH)
B48: ='Apparel Spec Sheet'!B48:O48 -> KNEE WIDTH | AG48: 0.25
B49: ='Apparel Spec Sheet'!B49:O49 -> LEG OPENING WIDTH | AG49: 0.25
B50: ='Apparel Spec Sheet'!B50:O50 -> FRONT CROTCH WIDTH | AG50: 0.25
B51: ='Apparel Spec Sheet'!B51:O51 -> SAM E BODY FIT AS SS18-1075- EXCEPT DIFFERENT FRONT STYLING | AG51: 0.375
B52: Sample Approved?
B53: If sample is NOT approved, then submit 2nd Pre-Production Samples. If sample is APPROVED, then submit Production Samples.

Sheet PreProduction Photo Comments (hidden)
L2: Create Date: | Q2: ='Photo Sheet'!Q2:W2 -> AUG 22/2017
L3: Vendor Name: | Q3: ='Photo Sheet'!Q3:AI3 -> 0
L4: Vndr.Item No.: | Q4: ='Photo Sheet'!Q4:W4 -> 0 | AA4: GC Item No.: | AE4: ='Photo Sheet'!AE4:AI4 -> 0
L5: Size Range: | Q5: ='Photo Sheet'!Q5:W5 -> 0-6 MONTHS | AA5: Season: | AD5: Fall Winter 2016
L6: Description: | Q6: ='Photo Sheet'!Q6:AI6 -> BABY- SHORT SLEEVE ONESIE PRINT WITH CHEST DIAGONAL OPENING
B8: PRE-PRODUCTION PHOTO COMMENTS--ONSIE | T8: Date: | AN8: L
AN9: LXL
AN10: M
AN11: S
AN12: SM
AN13: XL
AN14: XXL
AN15: XXXL

Sheet PACKAGING (hidden)
L2: Create Date: | Q2: ='Photo Sheet'!Q2:W2 -> AUG 22/2017
L3: Vendor Name: | Q3: ='Photo Sheet'!Q3:AI3 -> 0
L4: Vndr.Item No.: | Q4: ='Photo Sheet'!Q4:W4 -> 0 | AA4: GC Item No.: | AE4: ='Photo Sheet'!AE4:AI4 -> 0
L5: Size Range: | Q5: ='Photo Sheet'!Q5:W5 -> 0-6 MONTHS | AA5: Season: | AD5: Fall Winter 2016
L6: Description: | Q6: ='Photo Sheet'!Q6:AI6 -> BABY- SHORT SLEEVE ONESIE PRINT WITH CHEST DIAGONAL OPENING
B8: LABELS | T8: Date: | AN8: L
AN9: LXL
AN10: M
AN11: S
AN12: SM
AN13: XL
AN14: XXL
AN15: XXXL

Sheet Production Sample Comments (hidden)
L2: Create Date: | Q2: ='Photo Sheet'!Q2:W2 -> AUG 22/2017
L3: Vendor Name: | Q3: ='Photo Sheet'!Q3:AI3 -> 0
L4: Vndr.Item No.: | Q4: ='Photo Sheet'!Q4:W4 -> 0 | AA4: GC Item No.: | AE4: ='Photo Sheet'!AE4:AI4 -> 0
L5: Size Range: | Q5: ='Photo Sheet'!Q5:W5 -> 0-6 MONTHS | AA5: Season: | AD5: Fall Winter 2016
L6: Description: | Q6: ='Photo Sheet'!Q6:AI6 -> BABY- SHORT SLEEVE ONESIE PRINT WITH CHEST DIAGONAL OPENING
B8: PRODUCTION SAMPLE COMMENTS -- ONSIE | T8: Date: | AO8: S
B9: (Measurements on flat / inches) | P9: S | R9: 1st Colour | T9: 2nd Colour | V9: 3rd Colour | X9: 4th Colour | Z9: 5th Colour | AB9: 6th Colour | AD9: 7th Colour | AF9: 8th Colour | AH9: Tolerance + / - (on flat) | AO9: M
AO10: L
B11: ='Apparel Spec Sheet'!B11:O11 -> BACK TORSO LENGTH( HSP TO BACK CROTH -UNDOMED) | AH11: 0.375 | AO11: XL
B12: ='Apparel Spec Sheet'!B12:O12 -> CENTER BACK LENGTH( C.B. NECK TO HEM | AH12: 0.375 | AO12: SM
B13: ='Apparel Spec Sheet'!B14:O14 -> CHEST( 1/2" BELOW ARMHOLE | AH13: 0.375 | AO13: LXL
B14: FRONT LENGTH (FROM CENTRE FRONT NECK TO HEM) | AH14: 0.375 | AO14: OS
B15: ='Apparel Spec Sheet'!B15:O15 -> WAIST | AH15: 0.375 | AO15: 1X
B16: ='Apparel Spec Sheet'!B16:O16 -> HIP ( TOP OF LEG OPENING) | AH16: 0.375 | AO16: 2X
B17: ='Apparel Spec Sheet'!B17:O17 -> HEM STRAIGHT | AH17: 0.375 | AO17: 3X
B18: ='Apparel Spec Sheet'!B18:O18 -> ACROSS SHOULDERS | AH18: 0.375
B19: ='Apparel Spec Sheet'!B19:O19 -> SHOULDER SEAM LENGTH | AH19: 0.375
B20: HEM CURVE (FOLLOW) | AH20: 0.375
B21: ='Apparel Spec Sheet'!B21:O21 -> ACROSS BACK ( MID ARMHOLE) | AH21: 0.375
B22: ='Apparel Spec Sheet'!B22:O22 -> RAGLAN ACROSS FRONT ( MID ARMHOLE) | AH22: 0.375
B23: ='Apparel Spec Sheet'!B23:O23 -> RAGLAN ACROSS BACK ( MIS ARMHOLE) | AH23: 0.375
B24: ='Apparel Spec Sheet'!B24:O24 -> OVERARM - SLEEVE CAP TO HEM - SHORT SLEEVE | AH24: 0.25
B25: ='Apparel Spec Sheet'!B25:O25 -> OVERARM - SLEEVE CAP TO HEM - 3/4 SLEEVE | AH25: 0.25
B26: ='Apparel Spec Sheet'!B26:O26 -> OVERARM - SLEEVE CAP TO HEM - LONG SLEEVE | AH26: 0.375
B27: ='Apparel Spec Sheet'!B27:O27 -> OVERARM ( NECK TO SLEEVE HEM) | AH27: 0.25
B28: ='Apparel Spec Sheet'!B28:O28 -> 1/2 ARMHOLE STRAIGHT | AH28: 0.25
B29: ='Apparel Spec Sheet'!B29:O29 -> FRONT RAGLAN LENGTH ON SEAM | AH29: 0.25
B30: ='Apparel Spec Sheet'!B30:O30 -> BACK RAGLAN LENGTH ON SEAM | AH30: 0.25
B31: ='Apparel Spec Sheet'!B31:O31 -> BICEP ( AT ARMHOLE SEAM) | AH31: 0.25
B32: ='Apparel Spec Sheet'!B32:O32 -> ELBOW | AH32: 0.25
B33: ='Apparel Spec Sheet'!B33:O33 -> SHORT SLEEVE OPENING | AH33: 1/4
B34: ='Apparel Spec Sheet'!B34:O34 -> 3/4 SLEEVE OPENING | AH34: 0
B35: ='Apparel Spec Sheet'!B35:O35 -> LONG SLEEVE OPENING | AH35: 0.25
B36: ='Apparel Spec Sheet'!B36:O36 -> SLEEEVE CAP HEIGHT | AH36: 0.25
B37: ='Apparel Spec Sheet'!B37:O37 -> NECK WIDTH ( ON BACK BETWEEN TRIM) | AH37: 0.25
B38: ='Apparel Spec Sheet'!B38:O38 -> FRONT NECK DROP | AH38: 0.25
B39: ='Apparel Spec Sheet'!B39:O39 -> BACK NECK DROP | AH39: 0
B40: ='Apparel Spec Sheet'!B40:O40 -> 1/2 NECK CIRECUMFERENCE - RELAXED | AH40: 0
B41: ='Apparel Spec Sheet'!B41:O41 -> 1/2 NECK CIRECUMFERENCE -EXTENDED | AH41: 0.25
B42: ='Apparel Spec Sheet'!B42:O42 -> COLLAR DEPTH AT C.B NECK | AH42: 0
B43: ='Apparel Spec Sheet'!B43:O43 -> NECK TRIM DEPTH | AH43: 0
B44: ='Apparel Spec Sheet'!B44:O44 -> CUFF DEPTH | AH44: 0
B45: ='Apparel Spec Sheet'!B45:O45 -> SLEEVE HEM DEPTH | AH45: 0
B46: ='Apparel Spec Sheet'!B46:O46 -> BOTTOM HEM DEPTH | AH46: 0.375
B47: ='Apparel Spec Sheet'!B47:O47 -> THIGH ( 1/2" BELOW CROTCH)
B48: ='Apparel Spec Sheet'!B48:O48 -> KNEE WIDTH | AH48: 0.25
B49: ='Apparel Spec Sheet'!B49:O49 -> LEG OPENING WIDTH | AH49: 0.25
B50: ='Apparel Spec Sheet'!B50:O50 -> FRONT CROTCH WIDTH | AH50: 0.25
B51: ='Apparel Spec Sheet'!B51:O51 -> SAM E BODY FIT AS SS18-1075- EXCEPT DIFFERENT FRONT STYLING | AH51: 0.375
B52: Production Samples
B53: Approved ?

Sheet Production Photo Comment (hidden)
L2: Create Date: | Q2: ='Photo Sheet'!Q2:W2 -> AUG 22/2017
L3: Vendor Name: | Q3: ='Photo Sheet'!Q3:AI3 -> 0
L4: Vndr.Item No.: | Q4: ='Photo Sheet'!Q4:W4 -> 0 | AA4: GC Item No.: | AE4: ='Photo Sheet'!AE4:AI4 -> 0
L5: Size Range: | Q5: ='Photo Sheet'!Q5:W5 -> 0-6 MONTHS | AA5: Season: | AD5: ='Photo Sheet'!AD5:AI5 -> Spring Summer 2018
L6: Description: | Q6: ='Photo Sheet'!Q6:AI6 -> BABY- SHORT SLEEVE ONESIE PRINT WITH CHEST DIAGONAL OPENING
B8: PRODUCTION PHOTO COMMENTS-- ONSIE | T8: Date: | AN8: L
AN9: LXL
AN10: M
AN11: S
AN12: SM
AN13: XL
AN14: XXL
AN15: XXXL

Sheet AQL (hidden)
L2: Create Date: | Q2: ='[1]Photo Sheet'!Q2:W2 -> 2014-02-28
L3: Vendor Name: | Q3: ='[1]Photo Sheet'!Q3:AI3 -> Xiamen Winfavour
L4: Vndr.Item No.: | Q4: ='[1]Photo Sheet'!Q4:W4 -> ABCD12345 | AA4: GC Item No.: | AE4: ='[1]Photo Sheet'!AE4:AI4 -> 205469
L5: Size Range: | Q5: ='[1]Photo Sheet'!Q5:W5 -> S-M-L-XL | AA5: Season: | AD5: Spring Summer 2015
L6: Description:
B8: AQL -- TOP / SWEATER | T8: Date: | X8: APRIL 7 / 2014 | CM8: + | CP8: L
B9: (Measurements on flat / inches) SIZE | P9: S | R9: BLACK | U9: WHITE | X9: PINK | BH9: Tolerance + / - (on flat) | CM9: - | CP9: LXL
CP10: M
B11: BACK LENGTH FROM (HIGH SHOULDER POINT) | BH11: 0.375 | CP11: S
B12: CENTER BACK LENGTH ( FROM NECK TO HEM ) | BH12: 0.375 | CP12: SM
B13: FRONT LENGTH FROM (HIGH SHOULDER POINT) | BH13: 0.375 | CP13: XL
B14: FRONT LENGTH (FROM CENTRE FRONT NECK TO HEM) | BH14: 0.375 | CP14: XXL
B15: CHEST (1" BELOW ARMHOLE) | BH15: 0.375 | CP15: XXXL
B16: WAIST (16 1/2" BELOW HIGH SHOULDER POINT) | BH16: 0.375
B17: TOP HIP ( 19 1/2" BELOW HSP ) | BH17: 0.375
B18: LOW HIP ( 24 1/2" BELOW HIGH SHOULDER POINT) | BH18: 0.375
B19: HEM STRAIGHT | BH19: 0.375
B20: HEM CURVE (FOLLOW) | BH20: 0.375
B21: ACROSS SHOULDERS | BH21: 0.375
B22: ACROSS FRONT (5" BELOW HIGH SHOULDER POINT) | BH22: 0.375
B23: ACROSS BACK (5" BELOW HIGH SHOULDER POINT) | BH23: 0.375
B24: OVERARM (FROM SLEEVE CAP TO HEM)-SHORT SLEEVE | BH24: 0.25
B25: OVERARM (FROM SLEEVE CAP TO HEM)- 3/4 SLEEVE | BH25: 0.25
B26: OVERARM (FROM SLEEVE CAP TO HEM)- LONG SLEEVE | BH26: 0.375
B27: 1/2 ARMHOLE STRAIGHT | BH27: 0.25
B28: BICEP (1" BELOW ARMHOLE) | BH28: 0.25
B29: ELBOW (8 1/2" BELOW ARMHOLE) | BH29: 0.25
B30: SHORT SLEEVE OPENING | BH30: 0.25
B31: 3/4 SLEEVE OPENING | BH31: 0.25
B32: LONG SLEEVE OPENING | BH32: 0.25
B33: SLEEVE CAP HEIGHT ( FROM TOP OF SLEEVE TO UNDERARM ) | BH33: 1/4
B34: SHOULDER SLOPE ( HSP TO SHOULDER ARMHOLE SEAM ) | BH34: 0
B35: NECK WIDTH (HSP TO HSP) ON BACK | BH35: 0.25
B36: FRONT NECK DROP ( FROM HSP TO C.F.NECK EDGE OR SEAM ) | BH36: 0.25
B37: BACK NECK DROP ( FROM HSP TO C.B. NECK EDGE OR SEAM ) | BH37: 0.25
B38: 1/2 NECK CIRCUMFERENCE | BH38: 0.25
B39: COLLAR DEPTH ( AT C.B. NECK ) | BH39: 0
B40: STAND DEPTH | BH40: 0
B41: COLLAR LENGTH | BH41: 0.25
B42: NECK TRIM DEPTH | BH42: 0
B43: CUFF DEPTH | BH43: 0
B44: SLEEVE HEM DEPTH | BH44: 0
B45: BOTTOM HEM DEPTH | BH45: 0
B46: BACK HEM WIDTH ( STRAIGHT FROM SEAM TO SEAM ) | BH46: 0.375
B48: HOOD DEPTH AT CENTRE FRONT ( TOP HOOD TO NECK) | BH48: 0.25
B49: HOOD DEPTH AT SHOULDER ( TOP HOOD TO SHOULDER SEAM) | BH49: 0.25
B50: HOOD WIDTH (4" BELOW TOP OF HOOD) | BH50: 0.25
B51: HOOD OVERHEAD ( FOLLOWED ALONG C.B. SEAM ) | BH51: 0.375
B52: Shipment Accepted?
